Workbook

Sheet 入力手順
E1: 手順
P2: 以上
P3: ここまで
D11: ①登録予定者
D13: ↓色つきの部分に数値や文字を入力をしてくだい。A票にリンクしています。
D14: ５桁 | E14: 氏名 | F14: 全角 | G14: ﾌﾘｶﾞﾅ | H14: 半角 | I14: 学年 | J14: 省略校名 | L14: 性別
D15: 半角 | E15: 姓 | F15: 名 | G15: 姓 | H15: 名 | I15: 半角 | J15: ６文字全角 | L15: 全角
D16: 40380 | E16: 陸上 | F16: 駅男 | G16: ﾘｸｼﾞｮｳ | H16: ｴｷｵ | I16: 3 | J16: 都駅伝 | L16: 男
D17: 57791 | E17: 長距離 | F17: 走太 | G17: ﾁｮｳｷｮﾘ | H17: ｿｳﾀ | I17: 1 | J17: 都駅伝 | L17: 女
D18: 17201 | E18: 五千 | F18: 飛子 | G18: ｺﾞｾﾝ | H18: ﾄﾋﾞｺ | I18: 2 | J18: 都駅伝 | L18: 男
D19: 67201 | E19: 駅伝 | F19: 中子 | G19: ｴｷﾃﾞﾝ | H19: ﾅｶｺ | I19: 1 | J19: 都駅伝 | L19: 女
D24: ②入力ｼｰﾄ
D26: 競技会名 | F26: 新春駅伝競走大会 | K26: ←入力をしません
D27: 学校名（正式名称） | F27: 東京都立阿佐ヶ谷高等学校
D28: 学校長名 | F28: 駅伝 校長
D29: 学校所在地 | E29: 郵便番号 | F29: １６６－００１１ | P29: 以上
E30: 住所 | F30: 東京都杉並区阿佐谷南１－２３－４５ | P30: ここまで
E31: 電話番号 | F31: ０３－００００－００００
E32: ＦＡＸ番号 | F32: ０３－００００－００００
D33: 顧問氏名 | F33: 陸上 走太郎
D34: 連絡先 | F34: ０９０－００００－００００
D35: 審判氏名（審判をお願いできる場合にはすべての方の氏名を入力してください） | F35: 加藤 恭一、根津 善雄、金田 匡太
D36: 希望 審判種別 | F36: 計時、記録情報、広報
F38: 男子 | G38: 女子
D39: 参加チーム数 | F39: 2 | G39: 2
D40: 支部 | F40: 4
D41: 学校番号 | F41: 3
D42: 学校名（略称６文字） | F42: 都阿佐ヶ谷
D44: 男子出場選手情報
E45: 登録ﾅﾝﾊﾞｰ | F45: 氏名 | H45: ﾌﾘｶﾞﾅ
A46: ﾅﾝﾊﾞｰ | B46: 支部 | D46: Ａチーム | E46: ５桁 | F46: 姓 | G46: 名 | H46: 姓 | I46: 名 | J46: 学年 | K46: 性別 | M46: 性別
A47: 140301 | B47: 403 | C47: 1 | D47: 第１区 | E47: 40301 | F47: 宮内 | G47: 祐樹 | H47: ﾐﾔｳﾁ | I47: ﾕｳｷ | J47: 1 | K47: 男 | M47: 1
A48: 140302 | B48: 403 | C48: 2 | D48: 第２区 | E48: 40303 | F48: 白石 | G48: 朋 | H48: ｼﾗｲｼ | I48: ﾄﾓ | J48: 1 | K48: 男 | M48: 1
A49: 140303 | B49: 403 | C49: 3 | D49: 第３区 | E49: 40311 | F49: 伊藤 | G49: 悠理 | H49: ｲﾄｳ | I49: ﾕﾘ | J49: 3 | K49: 男 | M49: 1
A50: 140304 | B50: 403 | C50: 4 | D50: 第４区 | E50: 40312 | F50: 地﨑 | G50: 安里 | H50: ﾁｻﾞｷ | I50: ｱﾝﾘ | J50: 3 | K50: 男 | M50: 1
A51: 140305 | B51: 403 | C51: 5 | D51: 補欠 | E51: 40313 | F51: 北川 | G51: 祐 | H51: ｷﾀｶﾞﾜ | I51: ﾕｳ | J51: 3 | K51: 男 | M51: 1 | P51: 以上
A52: 140306 | B52: 403 | C52: 6 | D52: 補欠 | E52: 40314 | F52: 山本 | G52: 翼 | H52: ﾔﾏﾓﾄ | I52: ﾂﾊﾞｻ | J52: 2 | K52: 男 | M52: 1 | P52: ここまで
D53: Ｂチーム
A54: 140307 | B54: 403 | C54: 7 | D54: 第１区 | E54: 40315 | F54: 平山 | G54: 敏毅 | H54: ﾋﾗﾔﾏ | I54: ﾄｼｷ | J54: 2 | K54: 男 | M54: 1
A55: 140308 | B55: 403 | C55: 8 | D55: 第２区 | E55: 40316 | F55: 安齋 | G55: 成也 | H55: ｱﾝｻﾞｲ | I55: ｾｲﾔ | J55: 2 | K55: 男 | M55: 1
A56: 140309 | B56: 403 | C56: 9 | D56: 第３区 | E56: 40317 | F56: 山崎 | G56: 恭佑 | H56: ﾔﾏｻﾞｷ | I56: ｷｮｳｽｹ | J56: 2 | K56: 男 | M56: 1
A57: 140310 | B57: 403 | C57: 10 | D57: 第４区 | E57: 40318 | F57: 松本 | G57: 蛍一 | H57: ﾏﾂﾓﾄ | I57: ｹｲｲﾁ | J57: 2 | K57: 男 | M57: 1
A58: 140311 | B58: 403 | C58: 11 | D58: 補欠 | E58: 40319 | F58: 青山 | G58: 祥樹 | H58: ｱｵﾔﾏ | I58: ﾖｼｷ | J58: 1 | K58: 男 | M58: 1
A59: 140312 | B59: 403 | C59: 12 | D59: 補欠 | E59: 40320 | F59: 南川 | G59: 沙彩 | H59: ﾐﾅﾐｶﾜ | I59: ｻｱﾔ | J59: 2 | K59: 男 | M59: 1
D60: ロードレース
A61: 240301 | B61: 403 | C61: 1 | D61: 1 | E61: 40331 | F61: 鈴木 | G61: 智男 | H61: ｽｽﾞｷ | I61: ﾄﾓｵ | J61: 2 | K61: 男 | M61: 1
A62: 240302 | B62: 403 | C62: 2 | D62: 2 | E62: 40332 | F62: 関谷 | G62: 衿太 | H62: ｾｷﾔ | I62: ｴﾘﾀ | J62: 2 | K62: 男 | M62: 1
A63: 240303 | B63: 403 | C63: 3 | D63: 3 | E63: 40333 | F63: 山田 | G63: 英典 | H63: ﾔﾏﾀﾞ | I63: ヒデノリ | J63: 2 | K63: 男 | M63: 1
D65: 女子出場選手情報
E66: 登録ﾅﾝﾊﾞｰ | F66: 氏名 | H66: ﾌﾘｶﾞﾅ
A67: ﾅﾝﾊﾞｰ | B67: 支部 | D67: Ａチーム | E67: ５桁 | F67: 姓 | G67: 名 | H67: 姓 | I67: 名 | J67: 学年 | K67: 性別 | M67: 性別
A68: 340301 | B68: 403 | C68: 1 | D68: 第１区 | E68: 40351 | F68: 阿部 | G68: 真紀 | H68: ｱﾍﾞ | I68: ﾏｷ | J68: 2 | K68: 女 | M68: 2
A69: 340302 | B69: 403 | C69: 2 | D69: 第２区 | E69: 40352 | F69: 小林 | G69: 歩乃佳 | H69: ｺﾊﾞﾔｼ | I69: ﾎﾉｶ | J69: 2 | K69: 女 | M69: 2
A70: 340303 | B70: 403 | C70: 3 | D70: 第３区 | E70: 40353 | F70: 木場 | G70: 萌菜 | H70: ｺﾊﾞ | I70: ﾓｴﾅ | J70: 1 | K70: 女 | M70: 2
A71: 340304 | B71: 403 | C71: 4 | D71: 第４区 | E71: 40354 | F71: 鈴木 | G71: 真理子 | H71: ｽｽﾞｷ | I71: ﾏﾘｺ | J71: 2 | K71: 女 | M71: 2
A72: 340305 | B72: 403 | C72: 5 | D72: 補欠 | E72: 40355 | F72: 関谷 | G72: 美穂 | H72: ｾｷﾔ | I72: ﾐﾎ | J72: 2 | K72: 女 | M72: 2
A73: 340306 | B73: 403 | C73: 6 | D73: 補欠 | E73: 40356 | F73: 鈴木 | G73: 眞生子 | H73: ｽｽﾞｷ | I73: ﾏｵｺ | J73: 2 | K73: 女 | M73: 2 | P73: 以上
D74: Ｂチーム | P74: ここまで
A75: 340307 | B75: 403 | C75: 7 | D75: 第１区 | E75: 40370 | F75: 阿部 | G75: 遥 | H75: ｱﾍﾞ | I75: ﾊﾙｶ | J75: 2 | K75: 女 | M75: 2
A76: 340308 | B76: 403 | C76: 8 | D76: 第２区 | E76: 40372 | F76: 小林 | G76: 理沙子 | H76: ｺﾊﾞﾔｼ | I76: ﾘｻｺ | J76: 2 | K76: 女 | M76: 2
A77: 340309 | B77: 403 | C77: 9 | D77: 第３区 | E77: 40377 | F77: 木場 | G77: 捺月香 | H77: ｺﾊﾞ | I77: ﾅﾂｶ | J77: 1 | K77: 女 | M77: 2
A78: 340310 | B78: 403 | C78: 10 | D78: 第４区 | E78: 40374 | F78: 鈴木 | G78: 遥南 | H78: ｽｽﾞｷ | I78: ﾊﾙﾅ | J78: 2 | K78: 女 | M78: 2
A79: 340311 | B79: 403 | C79: 11 | D79: 補欠 | E79: 40375 | F79: 関谷 | G79: 千夏 | H79: ｾｷﾔ | I79: ﾁﾅﾂ | J79: 2 | K79: 女 | M79: 2
A80: 340312 | B80: 403 | C80: 12 | D80: 補欠 | E80: 40376 | F80: 鈴木 | G80: 夏帆 | H80: ｽｽﾞｷ | I80: ﾅﾂﾎ | J80: 2 | K80: 女 | M80: 2
D81: ロードレース
A82: 440301 | B82: 403 | C82: 1 | D82: 1 | E82: 40374 | F82: 小杉 | G82: 直子 | H82: ｺｽｷﾞ | I82: ﾅｵｺ | J82: 2 | K82: 女 | M82: 2
A83: 440302 | B83: 403 | C83: 2 | D83: 2 | E83: 40375 | F83: 小林 | G83: 実友紀 | H83: ｺﾊﾞﾔｼ | I83: ﾐﾕｷ | J83: 2 | K83: 女 | M83: 2
A84: 440303 | B84: 403 | C84: 3 | D84: 3 | E84: 40376 | F84: 鈴木 | G84: 織絵 | H84: ｽｽﾞｷ | I84: ｵﾘｴ | J84: 2 | K84: 女 | M84: 2
D87: 以上ここまで | I87: 以上ここまで

Sheet 登録予定者
A1: 0 | B1: ５桁 | C1: 氏名 | D1: 全角 | E1: ﾌﾘｶﾞﾅ | F1: 半角 | G1: 学年 | H1: 省略校名 | I1: 性別
A2: 0.1 | B2: 半角 | C2: 姓 | D2: 名 | E2: 姓 | F2: 名 | G2: 半角 | H2: ６文字 全角 | I2: 全角
A3: 0.2 | B3: 47201 | C3: 駅伝 | D3: 走太 | E3: ｴｷﾃﾞﾝ | F3: ｿｳﾀ | G3: 3 | H3: 都駅伝総合 | I3: 男 | J3: ←例
A4: 1
A5: 2
A6: 3
A7: 4
A8: 5
A9: 6
A10: 7
A11: 8
A12: 9
A13: 10
A14: 11
A15: 12
A16: 13
A17: 14
A18: 15
A19: 16
A20: 17
A21: 18
A22: 19
A23: 20
A24: 21
A25: 22
A26: 23
A27: 24
A28: 25
A29: 26
A30: 27
A31: 28
A32: 29
A33: 30
A34: 31
A35: 32
A36: 33
A37: 34
A38: 35
A39: 36
A40: 37
A41: 38
A42: 39
A43: 40
A44: 41
A45: 42
A46: 43
A47: 44
A48: 45
A49: 46
A50: 47
A51: 48
A52: 49
A53: 50
A54: 51
A55: 52
A56: 53
A57: 54
A58: 55
A59: 56
A60: 57
A61: 58
A62: 59
A63: 60
A64: 61
A65: 62
A66: 63
A67: 64
A68: 65
A69: 66
A70: 67
A71: 68
A72: 69
A73: 70
A74: 71
A75: 72
A76: 73
A77: 74
A78: 75
A79: 76
A80: 77
A81: 78
A82: 79
A83: 80
A84: 81
A85: 82
A86: 83
A87: 84
A88: 85
A89: 86
A90: 87
A91: 88
A92: 89
A93: 90
A94: 91
A95: 92
A96: 93
A97: 94
A98: 95
A99: 96
A100: 97
A101: 98
A102: 99
A103: 100

Sheet 入力ｼｰﾄ
A1: =CONCATENATE(A2,"\",A3) ->  | D1: 競技会名 | F1: 新春駅伝競走大会 | K1: _R1新春駅伝
A2: C:\Users\T1027536\Desktop\部活関係\陸上部 | D2: 学校名（正式名称）
A3: =CONCATENATE(VALUE(F15*100+F16),F17,K1,A5) ->  | D3: 学校長名
A4: =NOW() -> 43744.45959 | D4: 学校所在地 | E4: 郵便番号
A5: =TEXT(A4,"md") -> 106 | E5: 住所
E6: 電話番号
E7: ＦＡＸ番号
D8: 顧問氏名
D9: 連絡先
A10: =F15*100+F16 -> 0 | B10: =F17 ->  | D10: 審判氏名（審判をお願いできる場合にはすべての方の氏名を入力してください） | K10: =F11 -> 0
D11: 希望 審判種別
F13: 男子 | G13: 女子
D14: 参加チーム数 | E14: （半角） | F14: 0 | G14: 0
D15: 支部 | E15: （半角） | G15: ←４か５か６を入力します | O15: =VLOOKUP(F15*100+F16,省略学校名!B:F,5,0) -> 
D16: 学校番号 | E16: （半角） | G16: ←２桁番号です | O16: =IF(ISERROR(VLOOKUP(F15*100+F16,省略学校名!B:F,5,0)),"",O15) -> 
D17: 学校名（略称６文字） | F17: =VLOOKUP(F15*100+F16,省略学校名!B:F,5,FALSE) ->  | O17: =IF(O16="",F17,O16) -> 
D19: 男子出場選手情報
E20: 登録ﾅﾝﾊﾞｰ | F20: 氏名 | H20: ﾌﾘｶﾞﾅ
A21: ﾅﾝﾊﾞｰ | B21: 支部 | D21: Ａチーム | E21: ５桁(半角) | F21: 姓 | G21: 名 | H21: 姓 | I21: 名 | J21: 学年 | K21: 性別 | N21: 性別 | O21: 学校名 | P21: 氏名 | Q21: 学年 | R21: 支部 | S21: 学校 | T21: 参加 | U21: 確認
A22: =100000+B22*100+1 -> 100001 | B22: =$F$15*100+$F$16 -> 0 | C22: 1 | D22: 第１区 | F22: =IF($E22="","",IF(ISERROR(VLOOKUP($E22,氏名ﾃﾞｰﾀ!$B:$I,2,0)),IF(ISERROR(VLOOKUP($E22,登録予定者!$B:$I,2,0)),"未登録",VLOOKUP($E22,登録予定者!$B:$I,2,0)),VLOOKUP($E22,氏名ﾃﾞｰﾀ!$B:$I,2,0))) ->  | G22: =IF($E22="","",IF(ISERROR(VLOOKUP($E22,氏名ﾃﾞｰﾀ!$B:$I,3,0)),IF(ISERROR(VLOOKUP($E22,登録予定者!$B:$I,3,0)),"未登録",VLOOKUP($E22,登録予定者!$B:$I,3,0)),VLOOKUP($E22,氏名ﾃﾞｰﾀ!$B:$I,3,0))) ->  | H22: =IF($E22="","",IF(ISERROR(VLOOKUP($E22,氏名ﾃﾞｰﾀ!$B:$I,4,0)),IF(ISERROR(VLOOKUP($E22,登録予定者!$B:$I,4,0)),"未登録",VLOOKUP($E22,登録予定者!$B:$I,4,0)),VLOOKUP($E22,氏名ﾃﾞｰﾀ!$B:$I,4,0))) ->  | I22: =IF($E22="","",IF(ISERROR(VLOOKUP($E22,氏名ﾃﾞｰﾀ!$B:$I,5,0)),IF(ISERROR(VLOOKUP($E22,登録予定者!$B:$I,5,0)),"未登録",VLOOKUP($E22,登録予定者!$B:$I,5,0)),VLOOKUP($E22,氏名ﾃﾞｰﾀ!$B:$I,5,0))) ->  | J22: =IF($E22="","",IF(ISERROR(VLOOKUP($E22,氏名ﾃﾞｰﾀ!$B:$I,6,0)),IF(ISERROR(VLOOKUP($E22,登録予定者!$B:$I,6,0)),"未登録",VLOOKUP($E22,登録予定者!$B:$I,6,0)),VLOOKUP($E22,氏名ﾃﾞｰﾀ!$B:$I,6,0))) ->  | K22: 男 | N22: 1 | O22: =CONCATENATE($O$17,IF($E$29="","","Ａ")) ->  | P22: =IF(E22="","",CONCATENATE(F22," ",G22)) ->  | Q22: =IF(E22="","",J22) ->  | R22: =IF(E22="","",$F$15) ->  | S22: =IF(U22="","",RIGHT(B22,2)) ->  | T22: =IF(U22="",1,0) -> 1 | U22: =IF($E$22="","",B22*10+1) -> 
A23: =100000+B23*100+2 -> 100002 | B23: =$F$15*100+$F$16 -> 0 | C23: 2 | D23: 第２区 | F23: =IF($E23="","",IF(ISERROR(VLOOKUP($E23,氏名ﾃﾞｰﾀ!$B:$I,2,0)),IF(ISERROR(VLOOKUP($E23,登録予定者!$B:$I,2,0)),"未登録",VLOOKUP($E23,登録予定者!$B:$I,2,0)),VLOOKUP($E23,氏名ﾃﾞｰﾀ!$B:$I,2,0))) ->  | G23: =IF($E23="","",IF(ISERROR(VLOOKUP($E23,氏名ﾃﾞｰﾀ!$B:$I,3,0)),IF(ISERROR(VLOOKUP($E23,登録予定者!$B:$I,3,0)),"未登録",VLOOKUP($E23,登録予定者!$B:$I,3,0)),VLOOKUP($E23,氏名ﾃﾞｰﾀ!$B:$I,3,0))) ->  | H23: =IF($E23="","",IF(ISERROR(VLOOKUP($E23,氏名ﾃﾞｰﾀ!$B:$I,4,0)),IF(ISERROR(VLOOKUP($E23,登録予定者!$B:$I,4,0)),"未登録",VLOOKUP($E23,登録予定者!$B:$I,4,0)),VLOOKUP($E23,氏名ﾃﾞｰﾀ!$B:$I,4,0))) ->  | I23: =IF($E23="","",IF(ISERROR(VLOOKUP($E23,氏名ﾃﾞｰﾀ!$B:$I,5,0)),IF(ISERROR(VLOOKUP($E23,登録予定者!$B:$I,5,0)),"未登録",VLOOKUP($E23,登録予定者!$B:$I,5,0)),VLOOKUP($E23,氏名ﾃﾞｰﾀ!$B:$I,5,0))) ->  | J23: =IF($E23="","",IF(ISERROR(VLOOKUP($E23,氏名ﾃﾞｰﾀ!$B:$I,6,0)),IF(ISERROR(VLOOKUP($E23,登録予定者!$B:$I,6,0)),"未登録",VLOOKUP($E23,登録予定者!$B:$I,6,0)),VLOOKUP($E23,氏名ﾃﾞｰﾀ!$B:$I,6,0))) ->  | K23: 男 | N23: 1 | S23: =IF(U23="","",RIGHT(B23,2)) ->  | T23: =IF(U23="",1,0) -> 1
A24: =100000+B24*100+3 -> 100003 | B24: 0 | C24: 3 | D24: 第３区 | F24: =IF($E24="","",IF(ISERROR(VLOOKUP($E24,氏名ﾃﾞｰﾀ!$B:$I,2,0)),IF(ISERROR(VLOOKUP($E24,登録予定者!$B:$I,2,0)),"未登録",VLOOKUP($E24,登録予定者!$B:$I,2,0)),VLOOKUP($E24,氏名ﾃﾞｰﾀ!$B:$I,2,0))) ->  | G24: =IF($E24="","",IF(ISERROR(VLOOKUP($E24,氏名ﾃﾞｰﾀ!$B:$I,3,0)),IF(ISERROR(VLOOKUP($E24,登録予定者!$B:$I,3,0)),"未登録",VLOOKUP($E24,登録予定者!$B:$I,3,0)),VLOOKUP($E24,氏名ﾃﾞｰﾀ!$B:$I,3,0))) ->  | H24: =IF($E24="","",IF(ISERROR(VLOOKUP($E24,氏名ﾃﾞｰﾀ!$B:$I,4,0)),IF(ISERROR(VLOOKUP($E24,登録予定者!$B:$I,4,0)),"未登録",VLOOKUP($E24,登録予定者!$B:$I,4,0)),VLOOKUP($E24,氏名ﾃﾞｰﾀ!$B:$I,4,0))) ->  | I24: =IF($E24="","",IF(ISERROR(VLOOKUP($E24,氏名ﾃﾞｰﾀ!$B:$I,5,0)),IF(ISERROR(VLOOKUP($E24,登録予定者!$B:$I,5,0)),"未登録",VLOOKUP($E24,登録予定者!$B:$I,5,0)),VLOOKUP($E24,氏名ﾃﾞｰﾀ!$B:$I,5,0))) ->  | J24: =IF($E24="","",IF(ISERROR(VLOOKUP($E24,氏名ﾃﾞｰﾀ!$B:$I,6,0)),IF(ISERROR(VLOOKUP($E24,登録予定者!$B:$I,6,0)),"未登録",VLOOKUP($E24,登録予定者!$B:$I,6,0)),VLOOKUP($E24,氏名ﾃﾞｰﾀ!$B:$I,6,0))) ->  | K24: 男 | N24: 1 | T24: 1
A25: =100000+B25*100+4 -> 100004 | B25: 0 | C25: 4 | D25: 第４区 | F25: =IF($E25="","",IF(ISERROR(VLOOKUP($E25,氏名ﾃﾞｰﾀ!$B:$I,2,0)),IF(ISERROR(VLOOKUP($E25,登録予定者!$B:$I,2,0)),"未登録",VLOOKUP($E25,登録予定者!$B:$I,2,0)),VLOOKUP($E25,氏名ﾃﾞｰﾀ!$B:$I,2,0))) ->  | G25: =IF($E25="","",IF(ISERROR(VLOOKUP($E25,氏名ﾃﾞｰﾀ!$B:$I,3,0)),IF(ISERROR(VLOOKUP($E25,登録予定者!$B:$I,3,0)),"未登録",VLOOKUP($E25,登録予定者!$B:$I,3,0)),VLOOKUP($E25,氏名ﾃﾞｰﾀ!$B:$I,3,0))) ->  | H25: =IF($E25="","",IF(ISERROR(VLOOKUP($E25,氏名ﾃﾞｰﾀ!$B:$I,4,0)),IF(ISERROR(VLOOKUP($E25,登録予定者!$B:$I,4,0)),"未登録",VLOOKUP($E25,登録予定者!$B:$I,4,0)),VLOOKUP($E25,氏名ﾃﾞｰﾀ!$B:$I,4,0))) ->  | I25: =IF($E25="","",IF(ISERROR(VLOOKUP($E25,氏名ﾃﾞｰﾀ!$B:$I,5,0)),IF(ISERROR(VLOOKUP($E25,登録予定者!$B:$I,5,0)),"未登録",VLOOKUP($E25,登録予定者!$B:$I,5,0)),VLOOKUP($E25,氏名ﾃﾞｰﾀ!$B:$I,5,0))) ->  | J25: =IF($E25="","",IF(ISERROR(VLOOKUP($E25,氏名ﾃﾞｰﾀ!$B:$I,6,0)),IF(ISERROR(VLOOKUP($E25,登録予定者!$B:$I,6,0)),"未登録",VLOOKUP($E25,登録予定者!$B:$I,6,0)),VLOOKUP($E25,氏名ﾃﾞｰﾀ!$B:$I,6,0))) ->  | K25: 男 | N25: 1 | T25: 1
A26: =100000+B26*100+5 -> 100005 | B26: 0 | C26: 5 | D26: 補欠 | F26: =IF($E26="","",IF(ISERROR(VLOOKUP($E26,氏名ﾃﾞｰﾀ!$B:$I,2,0)),IF(ISERROR(VLOOKUP($E26,登録予定者!$B:$I,2,0)),"未登録",VLOOKUP($E26,登録予定者!$B:$I,2,0)),VLOOKUP($E26,氏名ﾃﾞｰﾀ!$B:$I,2,0))) ->  | G26: =IF($E26="","",IF(ISERROR(VLOOKUP($E26,氏名ﾃﾞｰﾀ!$B:$I,3,0)),IF(ISERROR(VLOOKUP($E26,登録予定者!$B:$I,3,0)),"未登録",VLOOKUP($E26,登録予定者!$B:$I,3,0)),VLOOKUP($E26,氏名ﾃﾞｰﾀ!$B:$I,3,0))) ->  | H26: =IF($E26="","",IF(ISERROR(VLOOKUP($E26,氏名ﾃﾞｰﾀ!$B:$I,4,0)),IF(ISERROR(VLOOKUP($E26,登録予定者!$B:$I,4,0)),"未登録",VLOOKUP($E26,登録予定者!$B:$I,4,0)),VLOOKUP($E26,氏名ﾃﾞｰﾀ!$B:$I,4,0))) ->  | I26: =IF($E26="","",IF(ISERROR(VLOOKUP($E26,氏名ﾃﾞｰﾀ!$B:$I,5,0)),IF(ISERROR(VLOOKUP($E26,登録予定者!$B:$I,5,0)),"未登録",VLOOKUP($E26,登録予定者!$B:$I,5,0)),VLOOKUP($E26,氏名ﾃﾞｰﾀ!$B:$I,5,0))) ->  | J26: =IF($E26="","",IF(ISERROR(VLOOKUP($E26,氏名ﾃﾞｰﾀ!$B:$I,6,0)),IF(ISERROR(VLOOKUP($E26,登録予定者!$B:$I,6,0)),"未登録",VLOOKUP($E26,登録予定者!$B:$I,6,0)),VLOOKUP($E26,氏名ﾃﾞｰﾀ!$B:$I,6,0))) ->  | K26: 男 | N26: 1 | T26: 1
A27: =100000+B27*100+6 -> 100006 | B27: 0 | C27: 6 | D27: 補欠 | F27: =IF($E27="","",IF(ISERROR(VLOOKUP($E27,氏名ﾃﾞｰﾀ!$B:$I,2,0)),IF(ISERROR(VLOOKUP($E27,登録予定者!$B:$I,2,0)),"未登録",VLOOKUP($E27,登録予定者!$B:$I,2,0)),VLOOKUP($E27,氏名ﾃﾞｰﾀ!$B:$I,2,0))) ->  | G27: =IF($E27="","",IF(ISERROR(VLOOKUP($E27,氏名ﾃﾞｰﾀ!$B:$I,3,0)),IF(ISERROR(VLOOKUP($E27,登録予定者!$B:$I,3,0)),"未登録",VLOOKUP($E27,登録予定者!$B:$I,3,0)),VLOOKUP($E27,氏名ﾃﾞｰﾀ!$B:$I,3,0))) ->  | H27: =IF($E27="","",IF(ISERROR(VLOOKUP($E27,氏名ﾃﾞｰﾀ!$B:$I,4,0)),IF(ISERROR(VLOOKUP($E27,登録予定者!$B:$I,4,0)),"未登録",VLOOKUP($E27,登録予定者!$B:$I,4,0)),VLOOKUP($E27,氏名ﾃﾞｰﾀ!$B:$I,4,0))) ->  | I27: =IF($E27="","",IF(ISERROR(VLOOKUP($E27,氏名ﾃﾞｰﾀ!$B:$I,5,0)),IF(ISERROR(VLOOKUP($E27,登録予定者!$B:$I,5,0)),"未登録",VLOOKUP($E27,登録予定者!$B:$I,5,0)),VLOOKUP($E27,氏名ﾃﾞｰﾀ!$B:$I,5,0))) ->  | J27: =IF($E27="","",IF(ISERROR(VLOOKUP($E27,氏名ﾃﾞｰﾀ!$B:$I,6,0)),IF(ISERROR(VLOOKUP($E27,登録予定者!$B:$I,6,0)),"未登録",VLOOKUP($E27,登録予定者!$B:$I,6,0)),VLOOKUP($E27,氏名ﾃﾞｰﾀ!$B:$I,6,0))) ->  | K27: 男 | N27: 1 | T27: 1
D28: Ｂチーム
A29: =100000+B29*100+7 -> 100007 | B29: =$F$15*100+$F$16 -> 0 | C29: 1 | D29: 第１区 | F29: =IF($E29="","",IF(ISERROR(VLOOKUP($E29,氏名ﾃﾞｰﾀ!$B:$I,2,0)),IF(ISERROR(VLOOKUP($E29,登録予定者!$B:$I,2,0)),"未登録",VLOOKUP($E29,登録予定者!$B:$I,2,0)),VLOOKUP($E29,氏名ﾃﾞｰﾀ!$B:$I,2,0))) ->  | G29: =IF($E29="","",IF(ISERROR(VLOOKUP($E29,氏名ﾃﾞｰﾀ!$B:$I,3,0)),IF(ISERROR(VLOOKUP($E29,登録予定者!$B:$I,3,0)),"未登録",VLOOKUP($E29,登録予定者!$B:$I,3,0)),VLOOKUP($E29,氏名ﾃﾞｰﾀ!$B:$I,3,0))) ->  | H29: =IF($E29="","",IF(ISERROR(VLOOKUP($E29,氏名ﾃﾞｰﾀ!$B:$I,4,0)),IF(ISERROR(VLOOKUP($E29,登録予定者!$B:$I,4,0)),"未登録",VLOOKUP($E29,登録予定者!$B:$I,4,0)),VLOOKUP($E29,氏名ﾃﾞｰﾀ!$B:$I,4,0))) ->  | I29: =IF($E29="","",IF(ISERROR(VLOOKUP($E29,氏名ﾃﾞｰﾀ!$B:$I,5,0)),IF(ISERROR(VLOOKUP($E29,登録予定者!$B:$I,5,0)),"未登録",VLOOKUP($E29,登録予定者!$B:$I,5,0)),VLOOKUP($E29,氏名ﾃﾞｰﾀ!$B:$I,5,0))) ->  | J29: =IF($E29="","",IF(ISERROR(VLOOKUP($E29,氏名ﾃﾞｰﾀ!$B:$I,6,0)),IF(ISERROR(VLOOKUP($E29,登録予定者!$B:$I,6,0)),"未登録",VLOOKUP($E29,登録予定者!$B:$I,6,0)),VLOOKUP($E29,氏名ﾃﾞｰﾀ!$B:$I,6,0))) ->  | K29: 男 | N29: 1 | O29: =CONCATENATE($O$17,"Ｂ") ->  | P29: =IF(E29="","",CONCATENATE(F29," ",G29)) ->  | Q29: =IF(E29="","",J29) ->  | R29: =IF(E29="","",$F$15) ->  | T29: 1 | U29: =IF($E$29="","",B29*10+1) -> 
A30: =100000+B30*100+8 -> 100008 | B30: 0 | C30: 2 | D30: 第２区 | F30: =IF($E30="","",IF(ISERROR(VLOOKUP($E30,氏名ﾃﾞｰﾀ!$B:$I,2,0)),IF(ISERROR(VLOOKUP($E30,登録予定者!$B:$I,2,0)),"未登録",VLOOKUP($E30,登録予定者!$B:$I,2,0)),VLOOKUP($E30,氏名ﾃﾞｰﾀ!$B:$I,2,0))) ->  | G30: =IF($E30="","",IF(ISERROR(VLOOKUP($E30,氏名ﾃﾞｰﾀ!$B:$I,3,0)),IF(ISERROR(VLOOKUP($E30,登録予定者!$B:$I,3,0)),"未登録",VLOOKUP($E30,登録予定者!$B:$I,3,0)),VLOOKUP($E30,氏名ﾃﾞｰﾀ!$B:$I,3,0))) ->  | H30: =IF($E30="","",IF(ISERROR(VLOOKUP($E30,氏名ﾃﾞｰﾀ!$B:$I,4,0)),IF(ISERROR(VLOOKUP($E30,登録予定者!$B:$I,4,0)),"未登録",VLOOKUP($E30,登録予定者!$B:$I,4,0)),VLOOKUP($E30,氏名ﾃﾞｰﾀ!$B:$I,4,0))) ->  | I30: =IF($E30="","",IF(ISERROR(VLOOKUP($E30,氏名ﾃﾞｰﾀ!$B:$I,5,0)),IF(ISERROR(VLOOKUP($E30,登録予定者!$B:$I,5,0)),"未登録",VLOOKUP($E30,登録予定者!$B:$I,5,0)),VLOOKUP($E30,氏名ﾃﾞｰﾀ!$B:$I,5,0))) ->  | J30: =IF($E30="","",IF(ISERROR(VLOOKUP($E30,氏名ﾃﾞｰﾀ!$B:$I,6,0)),IF(ISERROR(VLOOKUP($E30,登録予定者!$B:$I,6,0)),"未登録",VLOOKUP($E30,登録予定者!$B:$I,6,0)),VLOOKUP($E30,氏名ﾃﾞｰﾀ!$B:$I,6,0))) ->  | K30: 男 | N30: 1 | T30: 1
A31: =100000+B31*100+9 -> 100009 | B31: 0 | C31: 3 | D31: 第３区 | F31: =IF($E31="","",IF(ISERROR(VLOOKUP($E31,氏名ﾃﾞｰﾀ!$B:$I,2,0)),IF(ISERROR(VLOOKUP($E31,登録予定者!$B:$I,2,0)),"未登録",VLOOKUP($E31,登録予定者!$B:$I,2,0)),VLOOKUP($E31,氏名ﾃﾞｰﾀ!$B:$I,2,0))) ->  | G31: =IF($E31="","",IF(ISERROR(VLOOKUP($E31,氏名ﾃﾞｰﾀ!$B:$I,3,0)),IF(ISERROR(VLOOKUP($E31,登録予定者!$B:$I,3,0)),"未登録",VLOOKUP($E31,登録予定者!$B:$I,3,0)),VLOOKUP($E31,氏名ﾃﾞｰﾀ!$B:$I,3,0))) ->  | H31: =IF($E31="","",IF(ISERROR(VLOOKUP($E31,氏名ﾃﾞｰﾀ!$B:$I,4,0)),IF(ISERROR(VLOOKUP($E31,登録予定者!$B:$I,4,0)),"未登録",VLOOKUP($E31,登録予定者!$B:$I,4,0)),VLOOKUP($E31,氏名ﾃﾞｰﾀ!$B:$I,4,0))) ->  | I31: =IF($E31="","",IF(ISERROR(VLOOKUP($E31,氏名ﾃﾞｰﾀ!$B:$I,5,0)),IF(ISERROR(VLOOKUP($E31,登録予定者!$B:$I,5,0)),"未登録",VLOOKUP($E31,登録予定者!$B:$I,5,0)),VLOOKUP($E31,氏名ﾃﾞｰﾀ!$B:$I,5,0))) ->  | J31: =IF($E31="","",IF(ISERROR(VLOOKUP($E31,氏名ﾃﾞｰﾀ!$B:$I,6,0)),IF(ISERROR(VLOOKUP($E31,登録予定者!$B:$I,6,0)),"未登録",VLOOKUP($E31,登録予定者!$B:$I,6,0)),VLOOKUP($E31,氏名ﾃﾞｰﾀ!$B:$I,6,0))) ->  | K31: 男 | N31: 1 | T31: 1
A32: =100000+B32*100+10 -> 100010 | B32: 0 | C32: 4 | D32: 第４区 | F32: =IF($E32="","",IF(ISERROR(VLOOKUP($E32,氏名ﾃﾞｰﾀ!$B:$I,2,0)),IF(ISERROR(VLOOKUP($E32,登録予定者!$B:$I,2,0)),"未登録",VLOOKUP($E32,登録予定者!$B:$I,2,0)),VLOOKUP($E32,氏名ﾃﾞｰﾀ!$B:$I,2,0))) ->  | G32: =IF($E32="","",IF(ISERROR(VLOOKUP($E32,氏名ﾃﾞｰﾀ!$B:$I,3,0)),IF(ISERROR(VLOOKUP($E32,登録予定者!$B:$I,3,0)),"未登録",VLOOKUP($E32,登録予定者!$B:$I,3,0)),VLOOKUP($E32,氏名ﾃﾞｰﾀ!$B:$I,3,0))) ->  | H32: =IF($E32="","",IF(ISERROR(VLOOKUP($E32,氏名ﾃﾞｰﾀ!$B:$I,4,0)),IF(ISERROR(VLOOKUP($E32,登録予定者!$B:$I,4,0)),"未登録",VLOOKUP($E32,登録予定者!$B:$I,4,0)),VLOOKUP($E32,氏名ﾃﾞｰﾀ!$B:$I,4,0))) ->  | I32: =IF($E32="","",IF(ISERROR(VLOOKUP($E32,氏名ﾃﾞｰﾀ!$B:$I,5,0)),IF(ISERROR(VLOOKUP($E32,登録予定者!$B:$I,5,0)),"未登録",VLOOKUP($E32,登録予定者!$B:$I,5,0)),VLOOKUP($E32,氏名ﾃﾞｰﾀ!$B:$I,5,0))) ->  | J32: =IF($E32="","",IF(ISERROR(VLOOKUP($E32,氏名ﾃﾞｰﾀ!$B:$I,6,0)),IF(ISERROR(VLOOKUP($E32,登録予定者!$B:$I,6,0)),"未登録",VLOOKUP($E32,登録予定者!$B:$I,6,0)),VLOOKUP($E32,氏名ﾃﾞｰﾀ!$B:$I,6,0))) ->  | K32: 男 | N32: 1 | T32: 1
A33: =100000+B33*100+11 -> 100011 | B33: 0 | C33: 5 | D33: 補欠 | F33: =IF($E33="","",IF(ISERROR(VLOOKUP($E33,氏名ﾃﾞｰﾀ!$B:$I,2,0)),IF(ISERROR(VLOOKUP($E33,登録予定者!$B:$I,2,0)),"未登録",VLOOKUP($E33,登録予定者!$B:$I,2,0)),VLOOKUP($E33,氏名ﾃﾞｰﾀ!$B:$I,2,0))) ->  | G33: =IF($E33="","",IF(ISERROR(VLOOKUP($E33,氏名ﾃﾞｰﾀ!$B:$I,3,0)),IF(ISERROR(VLOOKUP($E33,登録予定者!$B:$I,3,0)),"未登録",VLOOKUP($E33,登録予定者!$B:$I,3,0)),VLOOKUP($E33,氏名ﾃﾞｰﾀ!$B:$I,3,0))) ->  | H33: =IF($E33="","",IF(ISERROR(VLOOKUP($E33,氏名ﾃﾞｰﾀ!$B:$I,4,0)),IF(ISERROR(VLOOKUP($E33,登録予定者!$B:$I,4,0)),"未登録",VLOOKUP($E33,登録予定者!$B:$I,4,0)),VLOOKUP($E33,氏名ﾃﾞｰﾀ!$B:$I,4,0))) ->  | I33: =IF($E33="","",IF(ISERROR(VLOOKUP($E33,氏名ﾃﾞｰﾀ!$B:$I,5,0)),IF(ISERROR(VLOOKUP($E33,登録予定者!$B:$I,5,0)),"未登録",VLOOKUP($E33,登録予定者!$B:$I,5,0)),VLOOKUP($E33,氏名ﾃﾞｰﾀ!$B:$I,5,0))) ->  | J33: =IF($E33="","",IF(ISERROR(VLOOKUP($E33,氏名ﾃﾞｰﾀ!$B:$I,6,0)),IF(ISERROR(VLOOKUP($E33,登録予定者!$B:$I,6,0)),"未登録",VLOOKUP($E33,登録予定者!$B:$I,6,0)),VLOOKUP($E33,氏名ﾃﾞｰﾀ!$B:$I,6,0))) ->  | K33: 男 | N33: 1 | T33: 1
A34: =100000+B34*100+12 -> 100012 | B34: 0 | C34: 6 | D34: 補欠 | F34: =IF($E34="","",IF(ISERROR(VLOOKUP($E34,氏名ﾃﾞｰﾀ!$B:$I,2,0)),IF(ISERROR(VLOOKUP($E34,登録予定者!$B:$I,2,0)),"未登録",VLOOKUP($E34,登録予定者!$B:$I,2,0)),VLOOKUP($E34,氏名ﾃﾞｰﾀ!$B:$I,2,0))) ->  | G34: =IF($E34="","",IF(ISERROR(VLOOKUP($E34,氏名ﾃﾞｰﾀ!$B:$I,3,0)),IF(ISERROR(VLOOKUP($E34,登録予定者!$B:$I,3,0)),"未登録",VLOOKUP($E34,登録予定者!$B:$I,3,0)),VLOOKUP($E34,氏名ﾃﾞｰﾀ!$B:$I,3,0))) ->  | H34: =IF($E34="","",IF(ISERROR(VLOOKUP($E34,氏名ﾃﾞｰﾀ!$B:$I,4,0)),IF(ISERROR(VLOOKUP($E34,登録予定者!$B:$I,4,0)),"未登録",VLOOKUP($E34,登録予定者!$B:$I,4,0)),VLOOKUP($E34,氏名ﾃﾞｰﾀ!$B:$I,4,0))) ->  | I34: =IF($E34="","",IF(ISERROR(VLOOKUP($E34,氏名ﾃﾞｰﾀ!$B:$I,5,0)),IF(ISERROR(VLOOKUP($E34,登録予定者!$B:$I,5,0)),"未登録",VLOOKUP($E34,登録予定者!$B:$I,5,0)),VLOOKUP($E34,氏名ﾃﾞｰﾀ!$B:$I,5,0))) ->  | J34: =IF($E34="","",IF(ISERROR(VLOOKUP($E34,氏名ﾃﾞｰﾀ!$B:$I,6,0)),IF(ISERROR(VLOOKUP($E34,登録予定者!$B:$I,6,0)),"未登録",VLOOKUP($E34,登録予定者!$B:$I,6,0)),VLOOKUP($E34,氏名ﾃﾞｰﾀ!$B:$I,6,0))) ->  | K34: 男 | N34: 1 | T34: 1
D35: Cチーム
A36: =100000+B36*100+13 -> 100013 | B36: =$F$15*100+$F$16 -> 0 | C36: 1 | D36: 第１区 | F36: =IF($E36="","",IF(ISERROR(VLOOKUP($E36,氏名ﾃﾞｰﾀ!$B:$I,2,0)),IF(ISERROR(VLOOKUP($E36,登録予定者!$B:$I,2,0)),"未登録",VLOOKUP($E36,登録予定者!$B:$I,2,0)),VLOOKUP($E36,氏名ﾃﾞｰﾀ!$B:$I,2,0))) ->  | G36: =IF($E36="","",IF(ISERROR(VLOOKUP($E36,氏名ﾃﾞｰﾀ!$B:$I,3,0)),IF(ISERROR(VLOOKUP($E36,登録予定者!$B:$I,3,0)),"未登録",VLOOKUP($E36,登録予定者!$B:$I,3,0)),VLOOKUP($E36,氏名ﾃﾞｰﾀ!$B:$I,3,0))) ->  | H36: =IF($E36="","",IF(ISERROR(VLOOKUP($E36,氏名ﾃﾞｰﾀ!$B:$I,4,0)),IF(ISERROR(VLOOKUP($E36,登録予定者!$B:$I,4,0)),"未登録",VLOOKUP($E36,登録予定者!$B:$I,4,0)),VLOOKUP($E36,氏名ﾃﾞｰﾀ!$B:$I,4,0))) ->  | I36: =IF($E36="","",IF(ISERROR(VLOOKUP($E36,氏名ﾃﾞｰﾀ!$B:$I,5,0)),IF(ISERROR(VLOOKUP($E36,登録予定者!$B:$I,5,0)),"未登録",VLOOKUP($E36,登録予定者!$B:$I,5,0)),VLOOKUP($E36,氏名ﾃﾞｰﾀ!$B:$I,5,0))) ->  | J36: =IF($E36="","",IF(ISERROR(VLOOKUP($E36,氏名ﾃﾞｰﾀ!$B:$I,6,0)),IF(ISERROR(VLOOKUP($E36,登録予定者!$B:$I,6,0)),"未登録",VLOOKUP($E36,登録予定者!$B:$I,6,0)),VLOOKUP($E36,氏名ﾃﾞｰﾀ!$B:$I,6,0))) ->  | K36: 男 | N36: 1 | P36: =IF(E36="","",CONCATENATE(F36," ",G36)) ->  | Q36: =IF(E36="","",J36) ->  | R36: =IF(E36="","",$F$15) ->  | S36: =IF(U36="","",RIGHT(B36,2)) ->  | T36: =IF(U36="",1,0) -> 1 | U36: =IF($E$29="","",B36*10+1) -> 
A37: =100000+B37*100+14 -> 100014 | B37: 0 | C37: 2 | D37: 第２区 | F37: =IF($E37="","",IF(ISERROR(VLOOKUP($E37,氏名ﾃﾞｰﾀ!$B:$I,2,0)),IF(ISERROR(VLOOKUP($E37,登録予定者!$B:$I,2,0)),"未登録",VLOOKUP($E37,登録予定者!$B:$I,2,0)),VLOOKUP($E37,氏名ﾃﾞｰﾀ!$B:$I,2,0))) ->  | G37: =IF($E37="","",IF(ISERROR(VLOOKUP($E37,氏名ﾃﾞｰﾀ!$B:$I,3,0)),IF(ISERROR(VLOOKUP($E37,登録予定者!$B:$I,3,0)),"未登録",VLOOKUP($E37,登録予定者!$B:$I,3,0)),VLOOKUP($E37,氏名ﾃﾞｰﾀ!$B:$I,3,0))) ->  | H37: =IF($E37="","",IF(ISERROR(VLOOKUP($E37,氏名ﾃﾞｰﾀ!$B:$I,4,0)),IF(ISERROR(VLOOKUP($E37,登録予定者!$B:$I,4,0)),"未登録",VLOOKUP($E37,登録予定者!$B:$I,4,0)),VLOOKUP($E37,氏名ﾃﾞｰﾀ!$B:$I,4,0))) ->  | I37: =IF($E37="","",IF(ISERROR(VLOOKUP($E37,氏名ﾃﾞｰﾀ!$B:$I,5,0)),IF(ISERROR(VLOOKUP($E37,登録予定者!$B:$I,5,0)),"未登録",VLOOKUP($E37,登録予定者!$B:$I,5,0)),VLOOKUP($E37,氏名ﾃﾞｰﾀ!$B:$I,5,0))) ->  | J37: =IF($E37="","",IF(ISERROR(VLOOKUP($E37,氏名ﾃﾞｰﾀ!$B:$I,6,0)),IF(ISERROR(VLOOKUP($E37,登録予定者!$B:$I,6,0)),"未登録",VLOOKUP($E37,登録予定者!$B:$I,6,0)),VLOOKUP($E37,氏名ﾃﾞｰﾀ!$B:$I,6,0))) ->  | K37: 男 | N37: 1 | T37: 1
A38: =100000+B38*100+15 -> 100015 | B38: 0 | C38: 3 | D38: 第３区 | F38: =IF($E38="","",IF(ISERROR(VLOOKUP($E38,氏名ﾃﾞｰﾀ!$B:$I,2,0)),IF(ISERROR(VLOOKUP($E38,登録予定者!$B:$I,2,0)),"未登録",VLOOKUP($E38,登録予定者!$B:$I,2,0)),VLOOKUP($E38,氏名ﾃﾞｰﾀ!$B:$I,2,0))) ->  | G38: =IF($E38="","",IF(ISERROR(VLOOKUP($E38,氏名ﾃﾞｰﾀ!$B:$I,3,0)),IF(ISERROR(VLOOKUP($E38,登録予定者!$B:$I,3,0)),"未登録",VLOOKUP($E38,登録予定者!$B:$I,3,0)),VLOOKUP($E38,氏名ﾃﾞｰﾀ!$B:$I,3,0))) ->  | H38: =IF($E38="","",IF(ISERROR(VLOOKUP($E38,氏名ﾃﾞｰﾀ!$B:$I,4,0)),IF(ISERROR(VLOOKUP($E38,登録予定者!$B:$I,4,0)),"未登録",VLOOKUP($E38,登録予定者!$B:$I,4,0)),VLOOKUP($E38,氏名ﾃﾞｰﾀ!$B:$I,4,0))) ->  | I38: =IF($E38="","",IF(ISERROR(VLOOKUP($E38,氏名ﾃﾞｰﾀ!$B:$I,5,0)),IF(ISERROR(VLOOKUP($E38,登録予定者!$B:$I,5,0)),"未登録",VLOOKUP($E38,登録予定者!$B:$I,5,0)),VLOOKUP($E38,氏名ﾃﾞｰﾀ!$B:$I,5,0))) ->  | J38: =IF($E38="","",IF(ISERROR(VLOOKUP($E38,氏名ﾃﾞｰﾀ!$B:$I,6,0)),IF(ISERROR(VLOOKUP($E38,登録予定者!$B:$I,6,0)),"未登録",VLOOKUP($E38,登録予定者!$B:$I,6,0)),VLOOKUP($E38,氏名ﾃﾞｰﾀ!$B:$I,6,0))) ->  | K38: 男 | N38: 1 | T38: 1
A39: =100000+B39*100+16 -> 100016 | B39: 0 | C39: 4 | D39: 第４区 | F39: =IF($E39="","",IF(ISERROR(VLOOKUP($E39,氏名ﾃﾞｰﾀ!$B:$I,2,0)),IF(ISERROR(VLOOKUP($E39,登録予定者!$B:$I,2,0)),"未登録",VLOOKUP($E39,登録予定者!$B:$I,2,0)),VLOOKUP($E39,氏名ﾃﾞｰﾀ!$B:$I,2,0))) ->  | G39: =IF($E39="","",IF(ISERROR(VLOOKUP($E39,氏名ﾃﾞｰﾀ!$B:$I,3,0)),IF(ISERROR(VLOOKUP($E39,登録予定者!$B:$I,3,0)),"未登録",VLOOKUP($E39,登録予定者!$B:$I,3,0)),VLOOKUP($E39,氏名ﾃﾞｰﾀ!$B:$I,3,0))) ->  | H39: =IF($E39="","",IF(ISERROR(VLOOKUP($E39,氏名ﾃﾞｰﾀ!$B:$I,4,0)),IF(ISERROR(VLOOKUP($E39,登録予定者!$B:$I,4,0)),"未登録",VLOOKUP($E39,登録予定者!$B:$I,4,0)),VLOOKUP($E39,氏名ﾃﾞｰﾀ!$B:$I,4,0))) ->  | I39: =IF($E39="","",IF(ISERROR(VLOOKUP($E39,氏名ﾃﾞｰﾀ!$B:$I,5,0)),IF(ISERROR(VLOOKUP($E39,登録予定者!$B:$I,5,0)),"未登録",VLOOKUP($E39,登録予定者!$B:$I,5,0)),VLOOKUP($E39,氏名ﾃﾞｰﾀ!$B:$I,5,0))) ->  | J39: =IF($E39="","",IF(ISERROR(VLOOKUP($E39,氏名ﾃﾞｰﾀ!$B:$I,6,0)),IF(ISERROR(VLOOKUP($E39,登録予定者!$B:$I,6,0)),"未登録",VLOOKUP($E39,登録予定者!$B:$I,6,0)),VLOOKUP($E39,氏名ﾃﾞｰﾀ!$B:$I,6,0))) ->  | K39: 男 | N39: 1 | T39: 1
A40: =100000+B40*100+16 -> 100016 | B40: 0 | C40: 5 | D40: 補欠 | F40: =IF($E40="","",IF(ISERROR(VLOOKUP($E40,氏名ﾃﾞｰﾀ!$B:$I,2,0)),IF(ISERROR(VLOOKUP($E40,登録予定者!$B:$I,2,0)),"未登録",VLOOKUP($E40,登録予定者!$B:$I,2,0)),VLOOKUP($E40,氏名ﾃﾞｰﾀ!$B:$I,2,0))) ->  | G40: =IF($E40="","",IF(ISERROR(VLOOKUP($E40,氏名ﾃﾞｰﾀ!$B:$I,3,0)),IF(ISERROR(VLOOKUP($E40,登録予定者!$B:$I,3,0)),"未登録",VLOOKUP($E40,登録予定者!$B:$I,3,0)),VLOOKUP($E40,氏名ﾃﾞｰﾀ!$B:$I,3,0))) ->  | H40: =IF($E40="","",IF(ISERROR(VLOOKUP($E40,氏名ﾃﾞｰﾀ!$B:$I,4,0)),IF(ISERROR(VLOOKUP($E40,登録予定者!$B:$I,4,0)),"未登録",VLOOKUP($E40,登録予定者!$B:$I,4,0)),VLOOKUP($E40,氏名ﾃﾞｰﾀ!$B:$I,4,0))) ->  | I40: =IF($E40="","",IF(ISERROR(VLOOKUP($E40,氏名ﾃﾞｰﾀ!$B:$I,5,0)),IF(ISERROR(VLOOKUP($E40,登録予定者!$B:$I,5,0)),"未登録",VLOOKUP($E40,登録予定者!$B:$I,5,0)),VLOOKUP($E40,氏名ﾃﾞｰﾀ!$B:$I,5,0))) ->  | J40: =IF($E40="","",IF(ISERROR(VLOOKUP($E40,氏名ﾃﾞｰﾀ!$B:$I,6,0)),IF(ISERROR(VLOOKUP($E40,登録予定者!$B:$I,6,0)),"未登録",VLOOKUP($E40,登録予定者!$B:$I,6,0)),VLOOKUP($E40,氏名ﾃﾞｰﾀ!$B:$I,6,0))) ->  | K40: 男 | N40: 1 | T40: 1
A41: =100000+B41*100+18 -> 100018 | B41: 0 | C41: 6 | D41: 補欠 | F41: =IF($E41="","",IF(ISERROR(VLOOKUP($E41,氏名ﾃﾞｰﾀ!$B:$I,2,0)),IF(ISERROR(VLOOKUP($E41,登録予定者!$B:$I,2,0)),"未登録",VLOOKUP($E41,登録予定者!$B:$I,2,0)),VLOOKUP($E41,氏名ﾃﾞｰﾀ!$B:$I,2,0))) ->  | G41: =IF($E41="","",IF(ISERROR(VLOOKUP($E41,氏名ﾃﾞｰﾀ!$B:$I,3,0)),IF(ISERROR(VLOOKUP($E41,登録予定者!$B:$I,3,0)),"未登録",VLOOKUP($E41,登録予定者!$B:$I,3,0)),VLOOKUP($E41,氏名ﾃﾞｰﾀ!$B:$I,3,0))) ->  | H41: =IF($E41="","",IF(ISERROR(VLOOKUP($E41,氏名ﾃﾞｰﾀ!$B:$I,4,0)),IF(ISERROR(VLOOKUP($E41,登録予定者!$B:$I,4,0)),"未登録",VLOOKUP($E41,登録予定者!$B:$I,4,0)),VLOOKUP($E41,氏名ﾃﾞｰﾀ!$B:$I,4,0))) ->  | I41: =IF($E41="","",IF(ISERROR(VLOOKUP($E41,氏名ﾃﾞｰﾀ!$B:$I,5,0)),IF(ISERROR(VLOOKUP($E41,登録予定者!$B:$I,5,0)),"未登録",VLOOKUP($E41,登録予定者!$B:$I,5,0)),VLOOKUP($E41,氏名ﾃﾞｰﾀ!$B:$I,5,0))) ->  | J41: =IF($E41="","",IF(ISERROR(VLOOKUP($E41,氏名ﾃﾞｰﾀ!$B:$I,6,0)),IF(ISERROR(VLOOKUP($E41,登録予定者!$B:$I,6,0)),"未登録",VLOOKUP($E41,登録予定者!$B:$I,6,0)),VLOOKUP($E41,氏名ﾃﾞｰﾀ!$B:$I,6,0))) ->  | K41: 男 | N41: 1 | T41: 1
D42: 男子ロードレース
A43: =200000+B43*100+C43 -> 200001 | B43: =$F$15*100+$F$16 -> 0 | C43: 1 | D43: 1 | F43: =IF($E43="","",IF(ISERROR(VLOOKUP($E43,氏名ﾃﾞｰﾀ!$B:$I,2,0)),IF(ISERROR(VLOOKUP($E43,登録予定者!$B:$I,2,0)),"未登録",VLOOKUP($E43,登録予定者!$B:$I,2,0)),VLOOKUP($E43,氏名ﾃﾞｰﾀ!$B:$I,2,0))) ->  | G43: =IF($E43="","",IF(ISERROR(VLOOKUP($E43,氏名ﾃﾞｰﾀ!$B:$I,3,0)),IF(ISERROR(VLOOKUP($E43,登録予定者!$B:$I,3,0)),"未登録",VLOOKUP($E43,登録予定者!$B:$I,3,0)),VLOOKUP($E43,氏名ﾃﾞｰﾀ!$B:$I,3,0))) ->  | H43: =IF($E43="","",IF(ISERROR(VLOOKUP($E43,氏名ﾃﾞｰﾀ!$B:$I,4,0)),IF(ISERROR(VLOOKUP($E43,登録予定者!$B:$I,4,0)),"未登録",VLOOKUP($E43,登録予定者!$B:$I,4,0)),VLOOKUP($E43,氏名ﾃﾞｰﾀ!$B:$I,4,0))) ->  | I43: =IF($E43="","",IF(ISERROR(VLOOKUP($E43,氏名ﾃﾞｰﾀ!$B:$I,5,0)),IF(ISERROR(VLOOKUP($E43,登録予定者!$B:$I,5,0)),"未登録",VLOOKUP($E43,登録予定者!$B:$I,5,0)),VLOOKUP($E43,氏名ﾃﾞｰﾀ!$B:$I,5,0))) ->  | J43: =IF($E43="","",IF(ISERROR(VLOOKUP($E43,氏名ﾃﾞｰﾀ!$B:$I,6,0)),IF(ISERROR(VLOOKUP($E43,登録予定者!$B:$I,6,0)),"未登録",VLOOKUP($E43,登録予定者!$B:$I,6,0)),VLOOKUP($E43,氏名ﾃﾞｰﾀ!$B:$I,6,0))) ->  | K43: 男 | N43: 1 | O43: =$O$17 ->  | P43: =IF(E43="","",CONCATENATE(F43," ",G43)) ->  | Q43: =IF(E43="","",J43) ->  | R43: =IF(E43="","",$F$15) ->  | T43: 1 | U43: =IF(E43="","",B43*10+2) -> 
A44: =200000+B44*100+C44 -> 200002 | B44: 0 | C44: 2 | D44: 2 | F44: =IF($E44="","",IF(ISERROR(VLOOKUP($E44,氏名ﾃﾞｰﾀ!$B:$I,2,0)),IF(ISERROR(VLOOKUP($E44,登録予定者!$B:$I,2,0)),"未登録",VLOOKUP($E44,登録予定者!$B:$I,2,0)),VLOOKUP($E44,氏名ﾃﾞｰﾀ!$B:$I,2,0))) ->  | G44: =IF($E44="","",IF(ISERROR(VLOOKUP($E44,氏名ﾃﾞｰﾀ!$B:$I,3,0)),IF(ISERROR(VLOOKUP($E44,登録予定者!$B:$I,3,0)),"未登録",VLOOKUP($E44,登録予定者!$B:$I,3,0)),VLOOKUP($E44,氏名ﾃﾞｰﾀ!$B:$I,3,0))) ->  | H44: =IF($E44="","",IF(ISERROR(VLOOKUP($E44,氏名ﾃﾞｰﾀ!$B:$I,4,0)),IF(ISERROR(VLOOKUP($E44,登録予定者!$B:$I,4,0)),"未登録",VLOOKUP($E44,登録予定者!$B:$I,4,0)),VLOOKUP($E44,氏名ﾃﾞｰﾀ!$B:$I,4,0))) ->  | I44: =IF($E44="","",IF(ISERROR(VLOOKUP($E44,氏名ﾃﾞｰﾀ!$B:$I,5,0)),IF(ISERROR(VLOOKUP($E44,登録予定者!$B:$I,5,0)),"未登録",VLOOKUP($E44,登録予定者!$B:$I,5,0)),VLOOKUP($E44,氏名ﾃﾞｰﾀ!$B:$I,5,0))) ->  | J44: =IF($E44="","",IF(ISERROR(VLOOKUP($E44,氏名ﾃﾞｰﾀ!$B:$I,6,0)),IF(ISERROR(VLOOKUP($E44,登録予定者!$B:$I,6,0)),"未登録",VLOOKUP($E44,登録予定者!$B:$I,6,0)),VLOOKUP($E44,氏名ﾃﾞｰﾀ!$B:$I,6,0))) ->  | K44: 男 | N44: 1 | O44: =$O$17 ->  | P44: =IF(E44="","",CONCATENATE(F44," ",G44)) ->  | Q44: =IF(E44="","",J44) ->  | R44: =IF(E44="","",$F$15) ->  | T44: 1 | U44: =IF(E44="","",B44*10+2) -> 
A45: =200000+B45*100+C45 -> 200003 | B45: 0 | C45: 3 | D45: 3 | F45: =IF($E45="","",IF(ISERROR(VLOOKUP($E45,氏名ﾃﾞｰﾀ!$B:$I,2,0)),IF(ISERROR(VLOOKUP($E45,登録予定者!$B:$I,2,0)),"未登録",VLOOKUP($E45,登録予定者!$B:$I,2,0)),VLOOKUP($E45,氏名ﾃﾞｰﾀ!$B:$I,2,0))) ->  | G45: =IF($E45="","",IF(ISERROR(VLOOKUP($E45,氏名ﾃﾞｰﾀ!$B:$I,3,0)),IF(ISERROR(VLOOKUP($E45,登録予定者!$B:$I,3,0)),"未登録",VLOOKUP($E45,登録予定者!$B:$I,3,0)),VLOOKUP($E45,氏名ﾃﾞｰﾀ!$B:$I,3,0))) ->  | H45: =IF($E45="","",IF(ISERROR(VLOOKUP($E45,氏名ﾃﾞｰﾀ!$B:$I,4,0)),IF(ISERROR(VLOOKUP($E45,登録予定者!$B:$I,4,0)),"未登録",VLOOKUP($E45,登録予定者!$B:$I,4,0)),VLOOKUP($E45,氏名ﾃﾞｰﾀ!$B:$I,4,0))) ->  | I45: =IF($E45="","",IF(ISERROR(VLOOKUP($E45,氏名ﾃﾞｰﾀ!$B:$I,5,0)),IF(ISERROR(VLOOKUP($E45,登録予定者!$B:$I,5,0)),"未登録",VLOOKUP($E45,登録予定者!$B:$I,5,0)),VLOOKUP($E45,氏名ﾃﾞｰﾀ!$B:$I,5,0))) ->  | J45: =IF($E45="","",IF(ISERROR(VLOOKUP($E45,氏名ﾃﾞｰﾀ!$B:$I,6,0)),IF(ISERROR(VLOOKUP($E45,登録予定者!$B:$I,6,0)),"未登録",VLOOKUP($E45,登録予定者!$B:$I,6,0)),VLOOKUP($E45,氏名ﾃﾞｰﾀ!$B:$I,6,0))) ->  | K45: 男 | N45: 1 | O45: =$O$17 ->  | P45: =IF(E45="","",CONCATENATE(F45," ",G45)) ->  | Q45: =IF(E45="","",J45) ->  | R45: =IF(E45="","",$F$15) ->  | T45: 1 | U45: =IF(E45="","",B45*10+2) -> 
D47: 女子出場選手情報
E48: 登録ﾅﾝﾊﾞｰ | F48: 氏名 | H48: ﾌﾘｶﾞﾅ
A49: ﾅﾝﾊﾞｰ | B49: 支部 | D49: Ａチーム | E49: ５桁(半角) | F49: 姓 | G49: 名 | H49: 姓 | I49: 名 | J49: 学年 | K49: 性別 | N49: 性別
A50: =300000+B50*100+1 -> 300001 | B50: =$F$15*100+$F$16 -> 0 | C50: 1 | D50: 第１区 | F50: =IF($E50="","",IF(ISERROR(VLOOKUP($E50,氏名ﾃﾞｰﾀ!$B:$I,2,0)),IF(ISERROR(VLOOKUP($E50,登録予定者!$B:$I,2,0)),"未登録",VLOOKUP($E50,登録予定者!$B:$I,2,0)),VLOOKUP($E50,氏名ﾃﾞｰﾀ!$B:$I,2,0))) ->  | G50: =IF($E50="","",IF(ISERROR(VLOOKUP($E50,氏名ﾃﾞｰﾀ!$B:$I,3,0)),IF(ISERROR(VLOOKUP($E50,登録予定者!$B:$I,3,0)),"未登録",VLOOKUP($E50,登録予定者!$B:$I,3,0)),VLOOKUP($E50,氏名ﾃﾞｰﾀ!$B:$I,3,0))) ->  | H50: =IF($E50="","",IF(ISERROR(VLOOKUP($E50,氏名ﾃﾞｰﾀ!$B:$I,4,0)),IF(ISERROR(VLOOKUP($E50,登録予定者!$B:$I,4,0)),"未登録",VLOOKUP($E50,登録予定者!$B:$I,4,0)),VLOOKUP($E50,氏名ﾃﾞｰﾀ!$B:$I,4,0))) ->  | I50: =IF($E50="","",IF(ISERROR(VLOOKUP($E50,氏名ﾃﾞｰﾀ!$B:$I,5,0)),IF(ISERROR(VLOOKUP($E50,登録予定者!$B:$I,5,0)),"未登録",VLOOKUP($E50,登録予定者!$B:$I,5,0)),VLOOKUP($E50,氏名ﾃﾞｰﾀ!$B:$I,5,0))) ->  | J50: =IF($E50="","",IF(ISERROR(VLOOKUP($E50,氏名ﾃﾞｰﾀ!$B:$I,6,0)),IF(ISERROR(VLOOKUP($E50,登録予定者!$B:$I,6,0)),"未登録",VLOOKUP($E50,登録予定者!$B:$I,6,0)),VLOOKUP($E50,氏名ﾃﾞｰﾀ!$B:$I,6,0))) ->  | K50: 女 | N50: 2 | O50: =CONCATENATE($O$17,IF($E$57="","","Ａ")) ->  | P50: =IF(E50="","",CONCATENATE(F50," ",G50)) ->  | Q50: =IF(E50="","",J50) ->  | R50: =IF(E50="","",$F$15) ->  | T50: 1 | U50: =IF($E$50="","",B50*10+3) -> 
A51: =300000+B51*100+2 -> 300002 | B51: 0 | C51: 2 | D51: 第２区 | F51: =IF($E51="","",IF(ISERROR(VLOOKUP($E51,氏名ﾃﾞｰﾀ!$B:$I,2,0)),IF(ISERROR(VLOOKUP($E51,登録予定者!$B:$I,2,0)),"未登録",VLOOKUP($E51,登録予定者!$B:$I,2,0)),VLOOKUP($E51,氏名ﾃﾞｰﾀ!$B:$I,2,0))) ->  | G51: =IF($E51="","",IF(ISERROR(VLOOKUP($E51,氏名ﾃﾞｰﾀ!$B:$I,3,0)),IF(ISERROR(VLOOKUP($E51,登録予定者!$B:$I,3,0)),"未登録",VLOOKUP($E51,登録予定者!$B:$I,3,0)),VLOOKUP($E51,氏名ﾃﾞｰﾀ!$B:$I,3,0))) ->  | H51: =IF($E51="","",IF(ISERROR(VLOOKUP($E51,氏名ﾃﾞｰﾀ!$B:$I,4,0)),IF(ISERROR(VLOOKUP($E51,登録予定者!$B:$I,4,0)),"未登録",VLOOKUP($E51,登録予定者!$B:$I,4,0)),VLOOKUP($E51,氏名ﾃﾞｰﾀ!$B:$I,4,0))) ->  | I51: =IF($E51="","",IF(ISERROR(VLOOKUP($E51,氏名ﾃﾞｰﾀ!$B:$I,5,0)),IF(ISERROR(VLOOKUP($E51,登録予定者!$B:$I,5,0)),"未登録",VLOOKUP($E51,登録予定者!$B:$I,5,0)),VLOOKUP($E51,氏名ﾃﾞｰﾀ!$B:$I,5,0))) ->  | J51: =IF($E51="","",IF(ISERROR(VLOOKUP($E51,氏名ﾃﾞｰﾀ!$B:$I,6,0)),IF(ISERROR(VLOOKUP($E51,登録予定者!$B:$I,6,0)),"未登録",VLOOKUP($E51,登録予定者!$B:$I,6,0)),VLOOKUP($E51,氏名ﾃﾞｰﾀ!$B:$I,6,0))) ->  | K51: 女 | N51: 2 | T51: 1
A52: =300000+B52*100+3 -> 300003 | B52: 0 | C52: 3 | D52: 第３区 | F52: =IF($E52="","",IF(ISERROR(VLOOKUP($E52,氏名ﾃﾞｰﾀ!$B:$I,2,0)),IF(ISERROR(VLOOKUP($E52,登録予定者!$B:$I,2,0)),"未登録",VLOOKUP($E52,登録予定者!$B:$I,2,0)),VLOOKUP($E52,氏名ﾃﾞｰﾀ!$B:$I,2,0))) ->  | G52: =IF($E52="","",IF(ISERROR(VLOOKUP($E52,氏名ﾃﾞｰﾀ!$B:$I,3,0)),IF(ISERROR(VLOOKUP($E52,登録予定者!$B:$I,3,0)),"未登録",VLOOKUP($E52,登録予定者!$B:$I,3,0)),VLOOKUP($E52,氏名ﾃﾞｰﾀ!$B:$I,3,0))) ->  | H52: =IF($E52="","",IF(ISERROR(VLOOKUP($E52,氏名ﾃﾞｰﾀ!$B:$I,4,0)),IF(ISERROR(VLOOKUP($E52,登録予定者!$B:$I,4,0)),"未登録",VLOOKUP($E52,登録予定者!$B:$I,4,0)),VLOOKUP($E52,氏名ﾃﾞｰﾀ!$B:$I,4,0))) ->  | I52: =IF($E52="","",IF(ISERROR(VLOOKUP($E52,氏名ﾃﾞｰﾀ!$B:$I,5,0)),IF(ISERROR(VLOOKUP($E52,登録予定者!$B:$I,5,0)),"未登録",VLOOKUP($E52,登録予定者!$B:$I,5,0)),VLOOKUP($E52,氏名ﾃﾞｰﾀ!$B:$I,5,0))) ->  | J52: =IF($E52="","",IF(ISERROR(VLOOKUP($E52,氏名ﾃﾞｰﾀ!$B:$I,6,0)),IF(ISERROR(VLOOKUP($E52,登録予定者!$B:$I,6,0)),"未登録",VLOOKUP($E52,登録予定者!$B:$I,6,0)),VLOOKUP($E52,氏名ﾃﾞｰﾀ!$B:$I,6,0))) ->  | K52: 女 | N52: 2 | T52: 1
A53: =300000+B53*100+4 -> 300004 | B53: 0 | C53: 4 | D53: 第４区 | F53: =IF($E53="","",IF(ISERROR(VLOOKUP($E53,氏名ﾃﾞｰﾀ!$B:$I,2,0)),IF(ISERROR(VLOOKUP($E53,登録予定者!$B:$I,2,0)),"未登録",VLOOKUP($E53,登録予定者!$B:$I,2,0)),VLOOKUP($E53,氏名ﾃﾞｰﾀ!$B:$I,2,0))) ->  | G53: =IF($E53="","",IF(ISERROR(VLOOKUP($E53,氏名ﾃﾞｰﾀ!$B:$I,3,0)),IF(ISERROR(VLOOKUP($E53,登録予定者!$B:$I,3,0)),"未登録",VLOOKUP($E53,登録予定者!$B:$I,3,0)),VLOOKUP($E53,氏名ﾃﾞｰﾀ!$B:$I,3,0))) ->  | H53: =IF($E53="","",IF(ISERROR(VLOOKUP($E53,氏名ﾃﾞｰﾀ!$B:$I,4,0)),IF(ISERROR(VLOOKUP($E53,登録予定者!$B:$I,4,0)),"未登録",VLOOKUP($E53,登録予定者!$B:$I,4,0)),VLOOKUP($E53,氏名ﾃﾞｰﾀ!$B:$I,4,0))) ->  | I53: =IF($E53="","",IF(ISERROR(VLOOKUP($E53,氏名ﾃﾞｰﾀ!$B:$I,5,0)),IF(ISERROR(VLOOKUP($E53,登録予定者!$B:$I,5,0)),"未登録",VLOOKUP($E53,登録予定者!$B:$I,5,0)),VLOOKUP($E53,氏名ﾃﾞｰﾀ!$B:$I,5,0))) ->  | J53: =IF($E53="","",IF(ISERROR(VLOOKUP($E53,氏名ﾃﾞｰﾀ!$B:$I,6,0)),IF(ISERROR(VLOOKUP($E53,登録予定者!$B:$I,6,0)),"未登録",VLOOKUP($E53,登録予定者!$B:$I,6,0)),VLOOKUP($E53,氏名ﾃﾞｰﾀ!$B:$I,6,0))) ->  | K53: 女 | N53: 2 | T53: 1
A54: =300000+B54*100+5 -> 300005 | B54: 0 | C54: 5 | D54: 補欠 | F54: =IF($E54="","",IF(ISERROR(VLOOKUP($E54,氏名ﾃﾞｰﾀ!$B:$I,2,0)),IF(ISERROR(VLOOKUP($E54,登録予定者!$B:$I,2,0)),"未登録",VLOOKUP($E54,登録予定者!$B:$I,2,0)),VLOOKUP($E54,氏名ﾃﾞｰﾀ!$B:$I,2,0))) ->  | G54: =IF($E54="","",IF(ISERROR(VLOOKUP($E54,氏名ﾃﾞｰﾀ!$B:$I,3,0)),IF(ISERROR(VLOOKUP($E54,登録予定者!$B:$I,3,0)),"未登録",VLOOKUP($E54,登録予定者!$B:$I,3,0)),VLOOKUP($E54,氏名ﾃﾞｰﾀ!$B:$I,3,0))) ->  | H54: =IF($E54="","",IF(ISERROR(VLOOKUP($E54,氏名ﾃﾞｰﾀ!$B:$I,4,0)),IF(ISERROR(VLOOKUP($E54,登録予定者!$B:$I,4,0)),"未登録",VLOOKUP($E54,登録予定者!$B:$I,4,0)),VLOOKUP($E54,氏名ﾃﾞｰﾀ!$B:$I,4,0))) ->  | I54: =IF($E54="","",IF(ISERROR(VLOOKUP($E54,氏名ﾃﾞｰﾀ!$B:$I,5,0)),IF(ISERROR(VLOOKUP($E54,登録予定者!$B:$I,5,0)),"未登録",VLOOKUP($E54,登録予定者!$B:$I,5,0)),VLOOKUP($E54,氏名ﾃﾞｰﾀ!$B:$I,5,0))) ->  | J54: =IF($E54="","",IF(ISERROR(VLOOKUP($E54,氏名ﾃﾞｰﾀ!$B:$I,6,0)),IF(ISERROR(VLOOKUP($E54,登録予定者!$B:$I,6,0)),"未登録",VLOOKUP($E54,登録予定者!$B:$I,6,0)),VLOOKUP($E54,氏名ﾃﾞｰﾀ!$B:$I,6,0))) ->  | K54: 女 | N54: 2 | T54: 1
A55: =300000+B55*100+6 -> 300006 | B55: 0 | C55: 6 | D55: 補欠 | F55: =IF($E55="","",IF(ISERROR(VLOOKUP($E55,氏名ﾃﾞｰﾀ!$B:$I,2,0)),IF(ISERROR(VLOOKUP($E55,登録予定者!$B:$I,2,0)),"未登録",VLOOKUP($E55,登録予定者!$B:$I,2,0)),VLOOKUP($E55,氏名ﾃﾞｰﾀ!$B:$I,2,0))) ->  | G55: =IF($E55="","",IF(ISERROR(VLOOKUP($E55,氏名ﾃﾞｰﾀ!$B:$I,3,0)),IF(ISERROR(VLOOKUP($E55,登録予定者!$B:$I,3,0)),"未登録",VLOOKUP($E55,登録予定者!$B:$I,3,0)),VLOOKUP($E55,氏名ﾃﾞｰﾀ!$B:$I,3,0))) ->  | H55: =IF($E55="","",IF(ISERROR(VLOOKUP($E55,氏名ﾃﾞｰﾀ!$B:$I,4,0)),IF(ISERROR(VLOOKUP($E55,登録予定者!$B:$I,4,0)),"未登録",VLOOKUP($E55,登録予定者!$B:$I,4,0)),VLOOKUP($E55,氏名ﾃﾞｰﾀ!$B:$I,4,0))) ->  | I55: =IF($E55="","",IF(ISERROR(VLOOKUP($E55,氏名ﾃﾞｰﾀ!$B:$I,5,0)),IF(ISERROR(VLOOKUP($E55,登録予定者!$B:$I,5,0)),"未登録",VLOOKUP($E55,登録予定者!$B:$I,5,0)),VLOOKUP($E55,氏名ﾃﾞｰﾀ!$B:$I,5,0))) ->  | J55: =IF($E55="","",IF(ISERROR(VLOOKUP($E55,氏名ﾃﾞｰﾀ!$B:$I,6,0)),IF(ISERROR(VLOOKUP($E55,登録予定者!$B:$I,6,0)),"未登録",VLOOKUP($E55,登録予定者!$B:$I,6,0)),VLOOKUP($E55,氏名ﾃﾞｰﾀ!$B:$I,6,0))) ->  | K55: 女 | N55: 2 | T55: 1
D56: Ｂチーム
A57: =300000+B57*100+7 -> 300007 | B57: =$F$15*100+$F$16 -> 0 | C57: 1 | D57: 第１区 | F57: =IF($E57="","",IF(ISERROR(VLOOKUP($E57,氏名ﾃﾞｰﾀ!$B:$I,2,0)),IF(ISERROR(VLOOKUP($E57,登録予定者!$B:$I,2,0)),"未登録",VLOOKUP($E57,登録予定者!$B:$I,2,0)),VLOOKUP($E57,氏名ﾃﾞｰﾀ!$B:$I,2,0))) ->  | G57: =IF($E57="","",IF(ISERROR(VLOOKUP($E57,氏名ﾃﾞｰﾀ!$B:$I,3,0)),IF(ISERROR(VLOOKUP($E57,登録予定者!$B:$I,3,0)),"未登録",VLOOKUP($E57,登録予定者!$B:$I,3,0)),VLOOKUP($E57,氏名ﾃﾞｰﾀ!$B:$I,3,0))) ->  | H57: =IF($E57="","",IF(ISERROR(VLOOKUP($E57,氏名ﾃﾞｰﾀ!$B:$I,4,0)),IF(ISERROR(VLOOKUP($E57,登録予定者!$B:$I,4,0)),"未登録",VLOOKUP($E57,登録予定者!$B:$I,4,0)),VLOOKUP($E57,氏名ﾃﾞｰﾀ!$B:$I,4,0))) ->  | I57: =IF($E57="","",IF(ISERROR(VLOOKUP($E57,氏名ﾃﾞｰﾀ!$B:$I,5,0)),IF(ISERROR(VLOOKUP($E57,登録予定者!$B:$I,5,0)),"未登録",VLOOKUP($E57,登録予定者!$B:$I,5,0)),VLOOKUP($E57,氏名ﾃﾞｰﾀ!$B:$I,5,0))) ->  | J57: =IF($E57="","",IF(ISERROR(VLOOKUP($E57,氏名ﾃﾞｰﾀ!$B:$I,6,0)),IF(ISERROR(VLOOKUP($E57,登録予定者!$B:$I,6,0)),"未登録",VLOOKUP($E57,登録予定者!$B:$I,6,0)),VLOOKUP($E57,氏名ﾃﾞｰﾀ!$B:$I,6,0))) ->  | K57: 女 | N57: 2 | O57: =CONCATENATE($O$17,"Ｂ") ->  | P57: =IF(E57="","",CONCATENATE(F57," ",G57)) ->  | Q57: =IF(E57="","",J57) ->  | R57: =IF(E57="","",$F$15) ->  | T57: 1 | U57: =IF($E$57="","",B57*10+3) -> 
A58: =300000+B58*100+8 -> 300008 | B58: 0 | C58: 2 | D58: 第２区 | F58: =IF($E58="","",IF(ISERROR(VLOOKUP($E58,氏名ﾃﾞｰﾀ!$B:$I,2,0)),IF(ISERROR(VLOOKUP($E58,登録予定者!$B:$I,2,0)),"未登録",VLOOKUP($E58,登録予定者!$B:$I,2,0)),VLOOKUP($E58,氏名ﾃﾞｰﾀ!$B:$I,2,0))) ->  | G58: =IF($E58="","",IF(ISERROR(VLOOKUP($E58,氏名ﾃﾞｰﾀ!$B:$I,3,0)),IF(ISERROR(VLOOKUP($E58,登録予定者!$B:$I,3,0)),"未登録",VLOOKUP($E58,登録予定者!$B:$I,3,0)),VLOOKUP($E58,氏名ﾃﾞｰﾀ!$B:$I,3,0))) ->  | H58: =IF($E58="","",IF(ISERROR(VLOOKUP($E58,氏名ﾃﾞｰﾀ!$B:$I,4,0)),IF(ISERROR(VLOOKUP($E58,登録予定者!$B:$I,4,0)),"未登録",VLOOKUP($E58,登録予定者!$B:$I,4,0)),VLOOKUP($E58,氏名ﾃﾞｰﾀ!$B:$I,4,0))) ->  | I58: =IF($E58="","",IF(ISERROR(VLOOKUP($E58,氏名ﾃﾞｰﾀ!$B:$I,5,0)),IF(ISERROR(VLOOKUP($E58,登録予定者!$B:$I,5,0)),"未登録",VLOOKUP($E58,登録予定者!$B:$I,5,0)),VLOOKUP($E58,氏名ﾃﾞｰﾀ!$B:$I,5,0))) ->  | J58: =IF($E58="","",IF(ISERROR(VLOOKUP($E58,氏名ﾃﾞｰﾀ!$B:$I,6,0)),IF(ISERROR(VLOOKUP($E58,登録予定者!$B:$I,6,0)),"未登録",VLOOKUP($E58,登録予定者!$B:$I,6,0)),VLOOKUP($E58,氏名ﾃﾞｰﾀ!$B:$I,6,0))) ->  | K58: 女 | N58: 2 | T58: 1
A59: =300000+B59*100+9 -> 300009 | B59: 0 | C59: 3 | D59: 第３区 | F59: =IF($E59="","",IF(ISERROR(VLOOKUP($E59,氏名ﾃﾞｰﾀ!$B:$I,2,0)),IF(ISERROR(VLOOKUP($E59,登録予定者!$B:$I,2,0)),"未登録",VLOOKUP($E59,登録予定者!$B:$I,2,0)),VLOOKUP($E59,氏名ﾃﾞｰﾀ!$B:$I,2,0))) ->  | G59: =IF($E59="","",IF(ISERROR(VLOOKUP($E59,氏名ﾃﾞｰﾀ!$B:$I,3,0)),IF(ISERROR(VLOOKUP($E59,登録予定者!$B:$I,3,0)),"未登録",VLOOKUP($E59,登録予定者!$B:$I,3,0)),VLOOKUP($E59,氏名ﾃﾞｰﾀ!$B:$I,3,0))) ->  | H59: =IF($E59="","",IF(ISERROR(VLOOKUP($E59,氏名ﾃﾞｰﾀ!$B:$I,4,0)),IF(ISERROR(VLOOKUP($E59,登録予定者!$B:$I,4,0)),"未登録",VLOOKUP($E59,登録予定者!$B:$I,4,0)),VLOOKUP($E59,氏名ﾃﾞｰﾀ!$B:$I,4,0))) ->  | I59: =IF($E59="","",IF(ISERROR(VLOOKUP($E59,氏名ﾃﾞｰﾀ!$B:$I,5,0)),IF(ISERROR(VLOOKUP($E59,登録予定者!$B:$I,5,0)),"未登録",VLOOKUP($E59,登録予定者!$B:$I,5,0)),VLOOKUP($E59,氏名ﾃﾞｰﾀ!$B:$I,5,0))) ->  | J59: =IF($E59="","",IF(ISERROR(VLOOKUP($E59,氏名ﾃﾞｰﾀ!$B:$I,6,0)),IF(ISERROR(VLOOKUP($E59,登録予定者!$B:$I,6,0)),"未登録",VLOOKUP($E59,登録予定者!$B:$I,6,0)),VLOOKUP($E59,氏名ﾃﾞｰﾀ!$B:$I,6,0))) ->  | K59: 女 | N59: 2 | T59: 1
A60: =300000+B60*100+10 -> 300010 | B60: 0 | C60: 4 | D60: 第４区 | F60: =IF($E60="","",IF(ISERROR(VLOOKUP($E60,氏名ﾃﾞｰﾀ!$B:$I,2,0)),IF(ISERROR(VLOOKUP($E60,登録予定者!$B:$I,2,0)),"未登録",VLOOKUP($E60,登録予定者!$B:$I,2,0)),VLOOKUP($E60,氏名ﾃﾞｰﾀ!$B:$I,2,0))) ->  | G60: =IF($E60="","",IF(ISERROR(VLOOKUP($E60,氏名ﾃﾞｰﾀ!$B:$I,3,0)),IF(ISERROR(VLOOKUP($E60,登録予定者!$B:$I,3,0)),"未登録",VLOOKUP($E60,登録予定者!$B:$I,3,0)),VLOOKUP($E60,氏名ﾃﾞｰﾀ!$B:$I,3,0))) ->  | H60: =IF($E60="","",IF(ISERROR(VLOOKUP($E60,氏名ﾃﾞｰﾀ!$B:$I,4,0)),IF(ISERROR(VLOOKUP($E60,登録予定者!$B:$I,4,0)),"未登録",VLOOKUP($E60,登録予定者!$B:$I,4,0)),VLOOKUP($E60,氏名ﾃﾞｰﾀ!$B:$I,4,0))) ->  | I60: =IF($E60="","",IF(ISERROR(VLOOKUP($E60,氏名ﾃﾞｰﾀ!$B:$I,5,0)),IF(ISERROR(VLOOKUP($E60,登録予定者!$B:$I,5,0)),"未登録",VLOOKUP($E60,登録予定者!$B:$I,5,0)),VLOOKUP($E60,氏名ﾃﾞｰﾀ!$B:$I,5,0))) ->  | J60: =IF($E60="","",IF(ISERROR(VLOOKUP($E60,氏名ﾃﾞｰﾀ!$B:$I,6,0)),IF(ISERROR(VLOOKUP($E60,登録予定者!$B:$I,6,0)),"未登録",VLOOKUP($E60,登録予定者!$B:$I,6,0)),VLOOKUP($E60,氏名ﾃﾞｰﾀ!$B:$I,6,0))) ->  | K60: 女 | N60: 2 | T60: 1
A61: =300000+B61*100+11 -> 300011 | B61: 0 | C61: 5 | D61: 補欠 | F61: =IF($E61="","",IF(ISERROR(VLOOKUP($E61,氏名ﾃﾞｰﾀ!$B:$I,2,0)),IF(ISERROR(VLOOKUP($E61,登録予定者!$B:$I,2,0)),"未登録",VLOOKUP($E61,登録予定者!$B:$I,2,0)),VLOOKUP($E61,氏名ﾃﾞｰﾀ!$B:$I,2,0))) ->  | G61: =IF($E61="","",IF(ISERROR(VLOOKUP($E61,氏名ﾃﾞｰﾀ!$B:$I,3,0)),IF(ISERROR(VLOOKUP($E61,登録予定者!$B:$I,3,0)),"未登録",VLOOKUP($E61,登録予定者!$B:$I,3,0)),VLOOKUP($E61,氏名ﾃﾞｰﾀ!$B:$I,3,0))) ->  | H61: =IF($E61="","",IF(ISERROR(VLOOKUP($E61,氏名ﾃﾞｰﾀ!$B:$I,4,0)),IF(ISERROR(VLOOKUP($E61,登録予定者!$B:$I,4,0)),"未登録",VLOOKUP($E61,登録予定者!$B:$I,4,0)),VLOOKUP($E61,氏名ﾃﾞｰﾀ!$B:$I,4,0))) ->  | I61: =IF($E61="","",IF(ISERROR(VLOOKUP($E61,氏名ﾃﾞｰﾀ!$B:$I,5,0)),IF(ISERROR(VLOOKUP($E61,登録予定者!$B:$I,5,0)),"未登録",VLOOKUP($E61,登録予定者!$B:$I,5,0)),VLOOKUP($E61,氏名ﾃﾞｰﾀ!$B:$I,5,0))) ->  | J61: =IF($E61="","",IF(ISERROR(VLOOKUP($E61,氏名ﾃﾞｰﾀ!$B:$I,6,0)),IF(ISERROR(VLOOKUP($E61,登録予定者!$B:$I,6,0)),"未登録",VLOOKUP($E61,登録予定者!$B:$I,6,0)),VLOOKUP($E61,氏名ﾃﾞｰﾀ!$B:$I,6,0))) ->  | K61: 女 | N61: 2 | T61: 1
A62: =300000+B62*100+12 -> 300012 | B62: 0 | C62: 6 | D62: 補欠 | F62: =IF($E62="","",IF(ISERROR(VLOOKUP($E62,氏名ﾃﾞｰﾀ!$B:$I,2,0)),IF(ISERROR(VLOOKUP($E62,登録予定者!$B:$I,2,0)),"未登録",VLOOKUP($E62,登録予定者!$B:$I,2,0)),VLOOKUP($E62,氏名ﾃﾞｰﾀ!$B:$I,2,0))) ->  | G62: =IF($E62="","",IF(ISERROR(VLOOKUP($E62,氏名ﾃﾞｰﾀ!$B:$I,3,0)),IF(ISERROR(VLOOKUP($E62,登録予定者!$B:$I,3,0)),"未登録",VLOOKUP($E62,登録予定者!$B:$I,3,0)),VLOOKUP($E62,氏名ﾃﾞｰﾀ!$B:$I,3,0))) ->  | H62: =IF($E62="","",IF(ISERROR(VLOOKUP($E62,氏名ﾃﾞｰﾀ!$B:$I,4,0)),IF(ISERROR(VLOOKUP($E62,登録予定者!$B:$I,4,0)),"未登録",VLOOKUP($E62,登録予定者!$B:$I,4,0)),VLOOKUP($E62,氏名ﾃﾞｰﾀ!$B:$I,4,0))) ->  | I62: =IF($E62="","",IF(ISERROR(VLOOKUP($E62,氏名ﾃﾞｰﾀ!$B:$I,5,0)),IF(ISERROR(VLOOKUP($E62,登録予定者!$B:$I,5,0)),"未登録",VLOOKUP($E62,登録予定者!$B:$I,5,0)),VLOOKUP($E62,氏名ﾃﾞｰﾀ!$B:$I,5,0))) ->  | J62: =IF($E62="","",IF(ISERROR(VLOOKUP($E62,氏名ﾃﾞｰﾀ!$B:$I,6,0)),IF(ISERROR(VLOOKUP($E62,登録予定者!$B:$I,6,0)),"未登録",VLOOKUP($E62,登録予定者!$B:$I,6,0)),VLOOKUP($E62,氏名ﾃﾞｰﾀ!$B:$I,6,0))) ->  | K62: 女 | N62: 2 | T62: 1
D63: Cチーム
A64: =300000+B64*100+13 -> 300013 | B64: =$F$15*100+$F$16 -> 0 | C64: 1 | D64: 第１区 | F64: =IF($E64="","",IF(ISERROR(VLOOKUP($E64,氏名ﾃﾞｰﾀ!$B:$I,2,0)),IF(ISERROR(VLOOKUP($E64,登録予定者!$B:$I,2,0)),"未登録",VLOOKUP($E64,登録予定者!$B:$I,2,0)),VLOOKUP($E64,氏名ﾃﾞｰﾀ!$B:$I,2,0))) ->  | G64: =IF($E64="","",IF(ISERROR(VLOOKUP($E64,氏名ﾃﾞｰﾀ!$B:$I,3,0)),IF(ISERROR(VLOOKUP($E64,登録予定者!$B:$I,3,0)),"未登録",VLOOKUP($E64,登録予定者!$B:$I,3,0)),VLOOKUP($E64,氏名ﾃﾞｰﾀ!$B:$I,3,0))) ->  | H64: =IF($E64="","",IF(ISERROR(VLOOKUP($E64,氏名ﾃﾞｰﾀ!$B:$I,4,0)),IF(ISERROR(VLOOKUP($E64,登録予定者!$B:$I,4,0)),"未登録",VLOOKUP($E64,登録予定者!$B:$I,4,0)),VLOOKUP($E64,氏名ﾃﾞｰﾀ!$B:$I,4,0))) ->  | I64: =IF($E64="","",IF(ISERROR(VLOOKUP($E64,氏名ﾃﾞｰﾀ!$B:$I,5,0)),IF(ISERROR(VLOOKUP($E64,登録予定者!$B:$I,5,0)),"未登録",VLOOKUP($E64,登録予定者!$B:$I,5,0)),VLOOKUP($E64,氏名ﾃﾞｰﾀ!$B:$I,5,0))) ->  | J64: =IF($E64="","",IF(ISERROR(VLOOKUP($E64,氏名ﾃﾞｰﾀ!$B:$I,6,0)),IF(ISERROR(VLOOKUP($E64,登録予定者!$B:$I,6,0)),"未登録",VLOOKUP($E64,登録予定者!$B:$I,6,0)),VLOOKUP($E64,氏名ﾃﾞｰﾀ!$B:$I,6,0))) ->  | K64: 女 | N64: 2 | P64: =IF(E64="","",CONCATENATE(F64," ",G64)) ->  | Q64: =IF(E64="","",J64) ->  | R64: =IF(E64="","",$F$15) ->  | S64: =IF(U64="","",RIGHT(B64,2)) ->  | T64: =IF(U64="",1,0) -> 1 | U64: =IF($E$57="","",B64*10+3) -> 
A65: =300000+B65*100+14 -> 300014 | B65: 0 | C65: 2 | D65: 第２区 | F65: =IF($E65="","",IF(ISERROR(VLOOKUP($E65,氏名ﾃﾞｰﾀ!$B:$I,2,0)),IF(ISERROR(VLOOKUP($E65,登録予定者!$B:$I,2,0)),"未登録",VLOOKUP($E65,登録予定者!$B:$I,2,0)),VLOOKUP($E65,氏名ﾃﾞｰﾀ!$B:$I,2,0))) ->  | G65: =IF($E65="","",IF(ISERROR(VLOOKUP($E65,氏名ﾃﾞｰﾀ!$B:$I,3,0)),IF(ISERROR(VLOOKUP($E65,登録予定者!$B:$I,3,0)),"未登録",VLOOKUP($E65,登録予定者!$B:$I,3,0)),VLOOKUP($E65,氏名ﾃﾞｰﾀ!$B:$I,3,0))) ->  | H65: =IF($E65="","",IF(ISERROR(VLOOKUP($E65,氏名ﾃﾞｰﾀ!$B:$I,4,0)),IF(ISERROR(VLOOKUP($E65,登録予定者!$B:$I,4,0)),"未登録",VLOOKUP($E65,登録予定者!$B:$I,4,0)),VLOOKUP($E65,氏名ﾃﾞｰﾀ!$B:$I,4,0))) ->  | I65: =IF($E65="","",IF(ISERROR(VLOOKUP($E65,氏名ﾃﾞｰﾀ!$B:$I,5,0)),IF(ISERROR(VLOOKUP($E65,登録予定者!$B:$I,5,0)),"未登録",VLOOKUP($E65,登録予定者!$B:$I,5,0)),VLOOKUP($E65,氏名ﾃﾞｰﾀ!$B:$I,5,0))) ->  | J65: =IF($E65="","",IF(ISERROR(VLOOKUP($E65,氏名ﾃﾞｰﾀ!$B:$I,6,0)),IF(ISERROR(VLOOKUP($E65,登録予定者!$B:$I,6,0)),"未登録",VLOOKUP($E65,登録予定者!$B:$I,6,0)),VLOOKUP($E65,氏名ﾃﾞｰﾀ!$B:$I,6,0))) ->  | K65: 女 | N65: 2 | T65: 1
A66: =300000+B66*100+15 -> 300015 | B66: 0 | C66: 3 | D66: 第３区 | F66: =IF($E66="","",IF(ISERROR(VLOOKUP($E66,氏名ﾃﾞｰﾀ!$B:$I,2,0)),IF(ISERROR(VLOOKUP($E66,登録予定者!$B:$I,2,0)),"未登録",VLOOKUP($E66,登録予定者!$B:$I,2,0)),VLOOKUP($E66,氏名ﾃﾞｰﾀ!$B:$I,2,0))) ->  | G66: =IF($E66="","",IF(ISERROR(VLOOKUP($E66,氏名ﾃﾞｰﾀ!$B:$I,3,0)),IF(ISERROR(VLOOKUP($E66,登録予定者!$B:$I,3,0)),"未登録",VLOOKUP($E66,登録予定者!$B:$I,3,0)),VLOOKUP($E66,氏名ﾃﾞｰﾀ!$B:$I,3,0))) ->  | H66: =IF($E66="","",IF(ISERROR(VLOOKUP($E66,氏名ﾃﾞｰﾀ!$B:$I,4,0)),IF(ISERROR(VLOOKUP($E66,登録予定者!$B:$I,4,0)),"未登録",VLOOKUP($E66,登録予定者!$B:$I,4,0)),VLOOKUP($E66,氏名ﾃﾞｰﾀ!$B:$I,4,0))) ->  | I66: =IF($E66="","",IF(ISERROR(VLOOKUP($E66,氏名ﾃﾞｰﾀ!$B:$I,5,0)),IF(ISERROR(VLOOKUP($E66,登録予定者!$B:$I,5,0)),"未登録",VLOOKUP($E66,登録予定者!$B:$I,5,0)),VLOOKUP($E66,氏名ﾃﾞｰﾀ!$B:$I,5,0))) ->  | J66: =IF($E66="","",IF(ISERROR(VLOOKUP($E66,氏名ﾃﾞｰﾀ!$B:$I,6,0)),IF(ISERROR(VLOOKUP($E66,登録予定者!$B:$I,6,0)),"未登録",VLOOKUP($E66,登録予定者!$B:$I,6,0)),VLOOKUP($E66,氏名ﾃﾞｰﾀ!$B:$I,6,0))) ->  | K66: 女 | N66: 2 | T66: 1
A67: =300000+B67*100+16 -> 300016 | B67: 0 | C67: 4 | D67: 第４区 | F67: =IF($E67="","",IF(ISERROR(VLOOKUP($E67,氏名ﾃﾞｰﾀ!$B:$I,2,0)),IF(ISERROR(VLOOKUP($E67,登録予定者!$B:$I,2,0)),"未登録",VLOOKUP($E67,登録予定者!$B:$I,2,0)),VLOOKUP($E67,氏名ﾃﾞｰﾀ!$B:$I,2,0))) ->  | G67: =IF($E67="","",IF(ISERROR(VLOOKUP($E67,氏名ﾃﾞｰﾀ!$B:$I,3,0)),IF(ISERROR(VLOOKUP($E67,登録予定者!$B:$I,3,0)),"未登録",VLOOKUP($E67,登録予定者!$B:$I,3,0)),VLOOKUP($E67,氏名ﾃﾞｰﾀ!$B:$I,3,0))) ->  | H67: =IF($E67="","",IF(ISERROR(VLOOKUP($E67,氏名ﾃﾞｰﾀ!$B:$I,4,0)),IF(ISERROR(VLOOKUP($E67,登録予定者!$B:$I,4,0)),"未登録",VLOOKUP($E67,登録予定者!$B:$I,4,0)),VLOOKUP($E67,氏名ﾃﾞｰﾀ!$B:$I,4,0))) ->  | I67: =IF($E67="","",IF(ISERROR(VLOOKUP($E67,氏名ﾃﾞｰﾀ!$B:$I,5,0)),IF(ISERROR(VLOOKUP($E67,登録予定者!$B:$I,5,0)),"未登録",VLOOKUP($E67,登録予定者!$B:$I,5,0)),VLOOKUP($E67,氏名ﾃﾞｰﾀ!$B:$I,5,0))) ->  | J67: =IF($E67="","",IF(ISERROR(VLOOKUP($E67,氏名ﾃﾞｰﾀ!$B:$I,6,0)),IF(ISERROR(VLOOKUP($E67,登録予定者!$B:$I,6,0)),"未登録",VLOOKUP($E67,登録予定者!$B:$I,6,0)),VLOOKUP($E67,氏名ﾃﾞｰﾀ!$B:$I,6,0))) ->  | K67: 女 | N67: 2 | T67: 1
A68: =300000+B68*100+17 -> 300017 | B68: 0 | C68: 5 | D68: 補欠 | F68: =IF($E68="","",IF(ISERROR(VLOOKUP($E68,氏名ﾃﾞｰﾀ!$B:$I,2,0)),IF(ISERROR(VLOOKUP($E68,登録予定者!$B:$I,2,0)),"未登録",VLOOKUP($E68,登録予定者!$B:$I,2,0)),VLOOKUP($E68,氏名ﾃﾞｰﾀ!$B:$I,2,0))) ->  | G68: =IF($E68="","",IF(ISERROR(VLOOKUP($E68,氏名ﾃﾞｰﾀ!$B:$I,3,0)),IF(ISERROR(VLOOKUP($E68,登録予定者!$B:$I,3,0)),"未登録",VLOOKUP($E68,登録予定者!$B:$I,3,0)),VLOOKUP($E68,氏名ﾃﾞｰﾀ!$B:$I,3,0))) ->  | H68: =IF($E68="","",IF(ISERROR(VLOOKUP($E68,氏名ﾃﾞｰﾀ!$B:$I,4,0)),IF(ISERROR(VLOOKUP($E68,登録予定者!$B:$I,4,0)),"未登録",VLOOKUP($E68,登録予定者!$B:$I,4,0)),VLOOKUP($E68,氏名ﾃﾞｰﾀ!$B:$I,4,0))) ->  | I68: =IF($E68="","",IF(ISERROR(VLOOKUP($E68,氏名ﾃﾞｰﾀ!$B:$I,5,0)),IF(ISERROR(VLOOKUP($E68,登録予定者!$B:$I,5,0)),"未登録",VLOOKUP($E68,登録予定者!$B:$I,5,0)),VLOOKUP($E68,氏名ﾃﾞｰﾀ!$B:$I,5,0))) ->  | J68: =IF($E68="","",IF(ISERROR(VLOOKUP($E68,氏名ﾃﾞｰﾀ!$B:$I,6,0)),IF(ISERROR(VLOOKUP($E68,登録予定者!$B:$I,6,0)),"未登録",VLOOKUP($E68,登録予定者!$B:$I,6,0)),VLOOKUP($E68,氏名ﾃﾞｰﾀ!$B:$I,6,0))) ->  | K68: 女 | N68: 2 | T68: 1
A69: =300000+B69*100+18 -> 300018 | B69: 0 | C69: 6 | D69: 補欠 | F69: =IF($E69="","",IF(ISERROR(VLOOKUP($E69,氏名ﾃﾞｰﾀ!$B:$I,2,0)),IF(ISERROR(VLOOKUP($E69,登録予定者!$B:$I,2,0)),"未登録",VLOOKUP($E69,登録予定者!$B:$I,2,0)),VLOOKUP($E69,氏名ﾃﾞｰﾀ!$B:$I,2,0))) ->  | G69: =IF($E69="","",IF(ISERROR(VLOOKUP($E69,氏名ﾃﾞｰﾀ!$B:$I,3,0)),IF(ISERROR(VLOOKUP($E69,登録予定者!$B:$I,3,0)),"未登録",VLOOKUP($E69,登録予定者!$B:$I,3,0)),VLOOKUP($E69,氏名ﾃﾞｰﾀ!$B:$I,3,0))) ->  | H69: =IF($E69="","",IF(ISERROR(VLOOKUP($E69,氏名ﾃﾞｰﾀ!$B:$I,4,0)),IF(ISERROR(VLOOKUP($E69,登録予定者!$B:$I,4,0)),"未登録",VLOOKUP($E69,登録予定者!$B:$I,4,0)),VLOOKUP($E69,氏名ﾃﾞｰﾀ!$B:$I,4,0))) ->  | I69: =IF($E69="","",IF(ISERROR(VLOOKUP($E69,氏名ﾃﾞｰﾀ!$B:$I,5,0)),IF(ISERROR(VLOOKUP($E69,登録予定者!$B:$I,5,0)),"未登録",VLOOKUP($E69,登録予定者!$B:$I,5,0)),VLOOKUP($E69,氏名ﾃﾞｰﾀ!$B:$I,5,0))) ->  | J69: =IF($E69="","",IF(ISERROR(VLOOKUP($E69,氏名ﾃﾞｰﾀ!$B:$I,6,0)),IF(ISERROR(VLOOKUP($E69,登録予定者!$B:$I,6,0)),"未登録",VLOOKUP($E69,登録予定者!$B:$I,6,0)),VLOOKUP($E69,氏名ﾃﾞｰﾀ!$B:$I,6,0))) ->  | K69: 女 | N69: 2 | T69: 1
D70: 女子ロードレース
A71: =400000+B71*100+C71 -> 400001 | B71: =$F$15*100+$F$16 -> 0 | C71: 1 | D71: 1 | F71: =IF($E71="","",IF(ISERROR(VLOOKUP($E71,氏名ﾃﾞｰﾀ!$B:$I,2,0)),IF(ISERROR(VLOOKUP($E71,登録予定者!$B:$I,2,0)),"未登録",VLOOKUP($E71,登録予定者!$B:$I,2,0)),VLOOKUP($E71,氏名ﾃﾞｰﾀ!$B:$I,2,0))) ->  | G71: =IF($E71="","",IF(ISERROR(VLOOKUP($E71,氏名ﾃﾞｰﾀ!$B:$I,3,0)),IF(ISERROR(VLOOKUP($E71,登録予定者!$B:$I,3,0)),"未登録",VLOOKUP($E71,登録予定者!$B:$I,3,0)),VLOOKUP($E71,氏名ﾃﾞｰﾀ!$B:$I,3,0))) ->  | H71: =IF($E71="","",IF(ISERROR(VLOOKUP($E71,氏名ﾃﾞｰﾀ!$B:$I,4,0)),IF(ISERROR(VLOOKUP($E71,登録予定者!$B:$I,4,0)),"未登録",VLOOKUP($E71,登録予定者!$B:$I,4,0)),VLOOKUP($E71,氏名ﾃﾞｰﾀ!$B:$I,4,0))) ->  | I71: =IF($E71="","",IF(ISERROR(VLOOKUP($E71,氏名ﾃﾞｰﾀ!$B:$I,5,0)),IF(ISERROR(VLOOKUP($E71,登録予定者!$B:$I,5,0)),"未登録",VLOOKUP($E71,登録予定者!$B:$I,5,0)),VLOOKUP($E71,氏名ﾃﾞｰﾀ!$B:$I,5,0))) ->  | J71: =IF($E71="","",IF(ISERROR(VLOOKUP($E71,氏名ﾃﾞｰﾀ!$B:$I,6,0)),IF(ISERROR(VLOOKUP($E71,登録予定者!$B:$I,6,0)),"未登録",VLOOKUP($E71,登録予定者!$B:$I,6,0)),VLOOKUP($E71,氏名ﾃﾞｰﾀ!$B:$I,6,0))) ->  | K71: 女 | N71: 2 | O71: =$O$17 ->  | P71: =IF(E71="","",CONCATENATE(F71," ",G71)) ->  | Q71: =IF(E71="","",J71) ->  | R71: =IF(E71="","",$F$15) ->  | T71: 1 | U71: =IF(E71="","",B71*10+4) -> 
A72: =400000+B72*100+C72 -> 400002 | B72: 0 | C72: 2 | D72: 2 | F72: =IF($E72="","",IF(ISERROR(VLOOKUP($E72,氏名ﾃﾞｰﾀ!$B:$I,2,0)),IF(ISERROR(VLOOKUP($E72,登録予定者!$B:$I,2,0)),"未登録",VLOOKUP($E72,登録予定者!$B:$I,2,0)),VLOOKUP($E72,氏名ﾃﾞｰﾀ!$B:$I,2,0))) ->  | G72: =IF($E72="","",IF(ISERROR(VLOOKUP($E72,氏名ﾃﾞｰﾀ!$B:$I,3,0)),IF(ISERROR(VLOOKUP($E72,登録予定者!$B:$I,3,0)),"未登録",VLOOKUP($E72,登録予定者!$B:$I,3,0)),VLOOKUP($E72,氏名ﾃﾞｰﾀ!$B:$I,3,0))) ->  | H72: =IF($E72="","",IF(ISERROR(VLOOKUP($E72,氏名ﾃﾞｰﾀ!$B:$I,4,0)),IF(ISERROR(VLOOKUP($E72,登録予定者!$B:$I,4,0)),"未登録",VLOOKUP($E72,登録予定者!$B:$I,4,0)),VLOOKUP($E72,氏名ﾃﾞｰﾀ!$B:$I,4,0))) ->  | I72: =IF($E72="","",IF(ISERROR(VLOOKUP($E72,氏名ﾃﾞｰﾀ!$B:$I,5,0)),IF(ISERROR(VLOOKUP($E72,登録予定者!$B:$I,5,0)),"未登録",VLOOKUP($E72,登録予定者!$B:$I,5,0)),VLOOKUP($E72,氏名ﾃﾞｰﾀ!$B:$I,5,0))) ->  | J72: =IF($E72="","",IF(ISERROR(VLOOKUP($E72,氏名ﾃﾞｰﾀ!$B:$I,6,0)),IF(ISERROR(VLOOKUP($E72,登録予定者!$B:$I,6,0)),"未登録",VLOOKUP($E72,登録予定者!$B:$I,6,0)),VLOOKUP($E72,氏名ﾃﾞｰﾀ!$B:$I,6,0))) ->  | K72: 女 | N72: 2 | O72: =$O$17 ->  | P72: =IF(E72="","",CONCATENATE(F72," ",G72)) ->  | Q72: =IF(E72="","",J72) ->  | R72: =IF(E72="","",$F$15) ->  | T72: 1 | U72: =IF(E72="","",B72*10+4) -> 
A73: =400000+B73*100+C73 -> 400003 | B73: 0 | C73: 3 | D73: 3 | F73: =IF($E73="","",IF(ISERROR(VLOOKUP($E73,氏名ﾃﾞｰﾀ!$B:$I,2,0)),IF(ISERROR(VLOOKUP($E73,登録予定者!$B:$I,2,0)),"未登録",VLOOKUP($E73,登録予定者!$B:$I,2,0)),VLOOKUP($E73,氏名ﾃﾞｰﾀ!$B:$I,2,0))) ->  | G73: =IF($E73="","",IF(ISERROR(VLOOKUP($E73,氏名ﾃﾞｰﾀ!$B:$I,3,0)),IF(ISERROR(VLOOKUP($E73,登録予定者!$B:$I,3,0)),"未登録",VLOOKUP($E73,登録予定者!$B:$I,3,0)),VLOOKUP($E73,氏名ﾃﾞｰﾀ!$B:$I,3,0))) ->  | H73: =IF($E73="","",IF(ISERROR(VLOOKUP($E73,氏名ﾃﾞｰﾀ!$B:$I,4,0)),IF(ISERROR(VLOOKUP($E73,登録予定者!$B:$I,4,0)),"未登録",VLOOKUP($E73,登録予定者!$B:$I,4,0)),VLOOKUP($E73,氏名ﾃﾞｰﾀ!$B:$I,4,0))) ->  | I73: =IF($E73="","",IF(ISERROR(VLOOKUP($E73,氏名ﾃﾞｰﾀ!$B:$I,5,0)),IF(ISERROR(VLOOKUP($E73,登録予定者!$B:$I,5,0)),"未登録",VLOOKUP($E73,登録予定者!$B:$I,5,0)),VLOOKUP($E73,氏名ﾃﾞｰﾀ!$B:$I,5,0))) ->  | J73: =IF($E73="","",IF(ISERROR(VLOOKUP($E73,氏名ﾃﾞｰﾀ!$B:$I,6,0)),IF(ISERROR(VLOOKUP($E73,登録予定者!$B:$I,6,0)),"未登録",VLOOKUP($E73,登録予定者!$B:$I,6,0)),VLOOKUP($E73,氏名ﾃﾞｰﾀ!$B:$I,6,0))) ->  | K73: 女 | N73: 2 | O73: =$O$17 ->  | P73: =IF(E73="","",CONCATENATE(F73," ",G73)) ->  | Q73: =IF(E73="","",J73) ->  | R73: =IF(E73="","",$F$15) ->  | T73: 1 | U73: =IF(E73="","",B73*10+4) -> 

Sheet 男子申込書
A1: 令和元年度 新春駅伝競走大会（４・５・６支部）申込書 男子用
A3: =CONCATENATE("第",入力ｼｰﾄ!F15,"支部 学校番号",入力ｼｰﾄ!F16) -> 第支部 学校番号
A4: 学校名 | B4: =入力ｼｰﾄ!F2 -> 0 | F4: 学校 所在地 | G4: =CONCATENATE("〒",入力ｼｰﾄ!F4) -> 〒
G5: =入力ｼｰﾄ!F5 -> 0
A6: 学校長 氏名 | B6: =入力ｼｰﾄ!F3 -> 0 | F6: 印 | H6: 顧問氏名 | I6: =入力ｼｰﾄ!F8 -> 0 | K6: 印
A7: 省略 学校名 | B7: =入力ｼｰﾄ!O17 ->  | D7: 電話番号 （学校） | E7: =入力ｼｰﾄ!F6 -> 0 | H7: 顧問 連絡先 | I7: =入力ｼｰﾄ!F9 -> 0
A8: Ａチーム
A9: 区間 | B9: 登録番号 | D9: 氏名 | G9: 学年 | I9: 健康診断結果
A10: 第１区 | B10: =IF(入力ｼｰﾄ!E22="","",入力ｼｰﾄ!E22) ->  | C10: =CONCATENATE(入力ｼｰﾄ!F22," ",入力ｼｰﾄ!G22) ->  | G10: =入力ｼｰﾄ!J22 ->  | H10: 出場は （ 可 ・ 否 ）
A11: 第２区 | B11: =IF(入力ｼｰﾄ!E23="","",入力ｼｰﾄ!E23) ->  | C11: =CONCATENATE(入力ｼｰﾄ!F23," ",入力ｼｰﾄ!G23) ->  | G11: =入力ｼｰﾄ!J23 ->  | H11: 出場は （ 可 ・ 否 ）
A12: 第３区 | B12: =IF(入力ｼｰﾄ!E24="","",入力ｼｰﾄ!E24) ->  | C12: =CONCATENATE(入力ｼｰﾄ!F24," ",入力ｼｰﾄ!G24) ->  | G12: =入力ｼｰﾄ!J24 ->  | H12: 出場は （ 可 ・ 否 ）
A13: 第４区 | B13: =IF(入力ｼｰﾄ!E25="","",入力ｼｰﾄ!E25) ->  | C13: =CONCATENATE(入力ｼｰﾄ!F25," ",入力ｼｰﾄ!G25) ->  | G13: =入力ｼｰﾄ!J25 ->  | H13: 出場は （ 可 ・ 否 ）
A14: 補欠 | B14: =IF(入力ｼｰﾄ!E26="","",入力ｼｰﾄ!E26) ->  | C14: =CONCATENATE(入力ｼｰﾄ!F26," ",入力ｼｰﾄ!G26) ->  | G14: =入力ｼｰﾄ!J26 ->  | H14: 出場は （ 可 ・ 否 ）
A15: 補欠 | B15: =IF(入力ｼｰﾄ!E27="","",入力ｼｰﾄ!E27) ->  | C15: =CONCATENATE(入力ｼｰﾄ!F27," ",入力ｼｰﾄ!G27) ->  | G15: =入力ｼｰﾄ!J27 ->  | H15: 出場は （ 可 ・ 否 ）
A16: Ｂチーム
A17: 区間 | B17: 登録番号 | D17: 氏名 | G17: 学年 | I17: 健康診断結果
A18: 第１区 | B18: =IF(入力ｼｰﾄ!E29="","",入力ｼｰﾄ!E29) ->  | C18: =CONCATENATE(入力ｼｰﾄ!F29," ",入力ｼｰﾄ!G29) ->  | G18: =入力ｼｰﾄ!J29 ->  | H18: 出場は （ 可 ・ 否 ）
A19: 第２区 | B19: =IF(入力ｼｰﾄ!E30="","",入力ｼｰﾄ!E30) ->  | C19: =CONCATENATE(入力ｼｰﾄ!F30," ",入力ｼｰﾄ!G30) ->  | G19: =入力ｼｰﾄ!J30 ->  | H19: 出場は （ 可 ・ 否 ）
A20: 第３区 | B20: =IF(入力ｼｰﾄ!E31="","",入力ｼｰﾄ!E31) ->  | C20: =CONCATENATE(入力ｼｰﾄ!F31," ",入力ｼｰﾄ!G31) ->  | G20: =入力ｼｰﾄ!J31 ->  | H20: 出場は （ 可 ・ 否 ）
A21: 第４区 | B21: =IF(入力ｼｰﾄ!E32="","",入力ｼｰﾄ!E32) ->  | C21: =CONCATENATE(入力ｼｰﾄ!F32," ",入力ｼｰﾄ!G32) ->  | G21: =入力ｼｰﾄ!J32 ->  | H21: 出場は （ 可 ・ 否 ）
A22: 補欠 | B22: =IF(入力ｼｰﾄ!E33="","",入力ｼｰﾄ!E33) ->  | C22: =CONCATENATE(入力ｼｰﾄ!F33," ",入力ｼｰﾄ!G33) ->  | G22: =入力ｼｰﾄ!J33 ->  | H22: 出場は （ 可 ・ 否 ）
A23: 補欠 | B23: =IF(入力ｼｰﾄ!E34="","",入力ｼｰﾄ!E34) ->  | C23: =CONCATENATE(入力ｼｰﾄ!F34," ",入力ｼｰﾄ!G34) ->  | G23: =入力ｼｰﾄ!J34 ->  | H23: 出場は （ 可 ・ 否 ）
A24: Cチーム
A25: 区間 | B25: 登録番号 | D25: 氏名 | G25: 学年 | I25: 健康診断結果
A26: 第１区 | B26: =IF(入力ｼｰﾄ!E36="","",入力ｼｰﾄ!E36) ->  | C26: =CONCATENATE(入力ｼｰﾄ!F36," ",入力ｼｰﾄ!G36) ->  | G26: =入力ｼｰﾄ!J36 ->  | H26: 出場は （ 可 ・ 否 ）
A27: 第２区 | B27: =IF(入力ｼｰﾄ!E37="","",入力ｼｰﾄ!E37) ->  | C27: =CONCATENATE(入力ｼｰﾄ!F37," ",入力ｼｰﾄ!G37) ->  | G27: =入力ｼｰﾄ!J37 ->  | H27: 出場は （ 可 ・ 否 ）
A28: 第３区 | B28: =IF(入力ｼｰﾄ!E38="","",入力ｼｰﾄ!E38) ->  | C28: =CONCATENATE(入力ｼｰﾄ!F38," ",入力ｼｰﾄ!G38) ->  | G28: =入力ｼｰﾄ!J38 ->  | H28: 出場は （ 可 ・ 否 ）
A29: 第４区 | B29: =IF(入力ｼｰﾄ!E39="","",入力ｼｰﾄ!E39) ->  | C29: =CONCATENATE(入力ｼｰﾄ!F39," ",入力ｼｰﾄ!G39) ->  | G29: =入力ｼｰﾄ!J39 ->  | H29: 出場は （ 可 ・ 否 ）
A30: 補欠 | B30: =IF(入力ｼｰﾄ!E40="","",入力ｼｰﾄ!E40) ->  | C30: =CONCATENATE(入力ｼｰﾄ!F40," ",入力ｼｰﾄ!G40) ->  | G30: =入力ｼｰﾄ!J40 ->  | H30: 出場は （ 可 ・ 否 ）
A31: 補欠 | B31: =IF(入力ｼｰﾄ!E41="","",入力ｼｰﾄ!E41) ->  | C31: =CONCATENATE(入力ｼｰﾄ!F41," ",入力ｼｰﾄ!G41) ->  | G31: =入力ｼｰﾄ!J41 ->  | H31: 出場は （ 可 ・ 否 ）
A32: ＊複数チーム参加する場合には補欠は他のチームのメンバーと同じ者が重なってもよい。
A33: ※ナンバーはチーム別の番号で、後日郵送するプログラム参照のこと。
A35: ロードレース
A37: ナンバー | B37: 登録番号 | D37: 氏名 | G37: 学年 | I37: 健康診断結果
A38: ※ | B38: =IF(入力ｼｰﾄ!E43="","",入力ｼｰﾄ!E43) ->  | C38: =CONCATENATE(入力ｼｰﾄ!F43," ",入力ｼｰﾄ!G43) ->  | G38: =入力ｼｰﾄ!J43 ->  | H38: 出場は （ 可 ・ 否 ）
A39: ※ | B39: =IF(入力ｼｰﾄ!E44="","",入力ｼｰﾄ!E44) ->  | C39: =CONCATENATE(入力ｼｰﾄ!F44," ",入力ｼｰﾄ!G44) ->  | G39: =入力ｼｰﾄ!J44 ->  | H39: 出場は （ 可 ・ 否 ）
A40: ※ | B40: =IF(入力ｼｰﾄ!E45="","",入力ｼｰﾄ!E45) ->  | C40: =CONCATENATE(入力ｼｰﾄ!F45," ",入力ｼｰﾄ!G45) ->  | G40: =入力ｼｰﾄ!J45 ->  | H40: 出場は （ 可 ・ 否 ）
A41: ※ナンバーは個人別の番号で、後日郵送するプログラム参照のこと。
A43: 顧問名 （審判） | B43: =IF(入力ｼｰﾄ!F10="","",入力ｼｰﾄ!F10) ->  | H43: 希望 審判種別 | I43: =IF(入力ｼｰﾄ!F11="","",入力ｼｰﾄ!F11) -> 
A44: ＊複数名の審判をお願いできる場合にはすべての方のお名前をお書きください。
B46: 駅伝参加費 | D46: ﾛｰﾄﾞﾚｰｽ参加費
B47: =入力ｼｰﾄ!F14 -> 0 | D47: =COUNTA(入力ｼｰﾄ!E43:E45) -> 0 | G47: 合計
B48: =B47*2000 -> 0 | D48: =D47*600 -> 0 | G48: =B48+D48 -> 0 | L48: （用紙をコピーして２部提出してください）

Sheet 女子申込書
A1: 令和元年度 新春駅伝競走大会（４・５・６支部）申込書 女子用
A3: =CONCATENATE("第",入力ｼｰﾄ!F15,"支部 学校番号",入力ｼｰﾄ!F16) -> 第支部 学校番号
A4: 学校名 | B4: =入力ｼｰﾄ!F2 -> 0 | F4: 学校 所在地 | G4: =CONCATENATE("〒",入力ｼｰﾄ!F4) -> 〒
G5: =入力ｼｰﾄ!F5 -> 0
A6: 学校長 氏名 | B6: =入力ｼｰﾄ!F3 -> 0 | F6: 印 | H6: 顧問氏名 | I6: =入力ｼｰﾄ!F8 -> 0 | K6: 印
A7: 省略 学校名 | B7: =入力ｼｰﾄ!O17 ->  | D7: 電話番号 （学校） | E7: =入力ｼｰﾄ!F6 -> 0 | H7: 顧問 連絡先 | I7: =入力ｼｰﾄ!F9 -> 0
A8: Ａチーム
A9: 区間 | B9: 登録番号 | D9: 氏名 | G9: 学年 | I9: 健康診断結果
A10: 第１区 | B10: =IF(入力ｼｰﾄ!E50=""," ",入力ｼｰﾄ!E50) ->  | C10: =CONCATENATE(入力ｼｰﾄ!F50," ",入力ｼｰﾄ!G50) ->  | G10: =入力ｼｰﾄ!J50 ->  | H10: 出場は （ 可 ・ 否 ）
A11: 第２区 | B11: =IF(入力ｼｰﾄ!E51=""," ",入力ｼｰﾄ!E51) ->  | C11: =CONCATENATE(入力ｼｰﾄ!F51," ",入力ｼｰﾄ!G51) ->  | G11: =入力ｼｰﾄ!J51 ->  | H11: 出場は （ 可 ・ 否 ）
A12: 第３区 | B12: =IF(入力ｼｰﾄ!E52=""," ",入力ｼｰﾄ!E52) ->  | C12: =CONCATENATE(入力ｼｰﾄ!F52," ",入力ｼｰﾄ!G52) ->  | G12: =入力ｼｰﾄ!J52 ->  | H12: 出場は （ 可 ・ 否 ）
A13: 第４区 | B13: =IF(入力ｼｰﾄ!E53=""," ",入力ｼｰﾄ!E53) ->  | C13: =CONCATENATE(入力ｼｰﾄ!F53," ",入力ｼｰﾄ!G53) ->  | G13: =入力ｼｰﾄ!J53 ->  | H13: 出場は （ 可 ・ 否 ）
A14: 補欠 | B14: =IF(入力ｼｰﾄ!E54=""," ",入力ｼｰﾄ!E54) ->  | C14: =CONCATENATE(入力ｼｰﾄ!F54," ",入力ｼｰﾄ!G54) ->  | G14: =入力ｼｰﾄ!J54 ->  | H14: 出場は （ 可 ・ 否 ）
A15: 補欠 | B15: =IF(入力ｼｰﾄ!E55=""," ",入力ｼｰﾄ!E55) ->  | C15: =CONCATENATE(入力ｼｰﾄ!F55," ",入力ｼｰﾄ!G55) ->  | G15: =入力ｼｰﾄ!J55 ->  | H15: 出場は （ 可 ・ 否 ）
A16: Ｂチーム
A17: 区間 | B17: 登録番号 | D17: 氏名 | G17: 学年 | I17: 健康診断結果
A18: 第１区 | B18: =IF(入力ｼｰﾄ!E57=""," ",入力ｼｰﾄ!E57) ->  | C18: =CONCATENATE(入力ｼｰﾄ!F57," ",入力ｼｰﾄ!G57) ->  | G18: =入力ｼｰﾄ!J57 ->  | H18: 出場は （ 可 ・ 否 ）
A19: 第２区 | B19: =IF(入力ｼｰﾄ!E58=""," ",入力ｼｰﾄ!E58) ->  | C19: =CONCATENATE(入力ｼｰﾄ!F58," ",入力ｼｰﾄ!G58) ->  | G19: =入力ｼｰﾄ!J58 ->  | H19: 出場は （ 可 ・ 否 ）
A20: 第３区 | B20: =IF(入力ｼｰﾄ!E59=""," ",入力ｼｰﾄ!E59) ->  | C20: =CONCATENATE(入力ｼｰﾄ!F59," ",入力ｼｰﾄ!G59) ->  | G20: =入力ｼｰﾄ!J59 ->  | H20: 出場は （ 可 ・ 否 ）
A21: 第４区 | B21: =IF(入力ｼｰﾄ!E60=""," ",入力ｼｰﾄ!E60) ->  | C21: =CONCATENATE(入力ｼｰﾄ!F60," ",入力ｼｰﾄ!G60) ->  | G21: =入力ｼｰﾄ!J60 ->  | H21: 出場は （ 可 ・ 否 ）
A22: 補欠 | B22: =IF(入力ｼｰﾄ!E61=""," ",入力ｼｰﾄ!E61) ->  | C22: =CONCATENATE(入力ｼｰﾄ!F61," ",入力ｼｰﾄ!G61) ->  | G22: =入力ｼｰﾄ!J61 ->  | H22: 出場は （ 可 ・ 否 ）
A23: 補欠 | B23: =IF(入力ｼｰﾄ!E62=""," ",入力ｼｰﾄ!E62) ->  | C23: =CONCATENATE(入力ｼｰﾄ!F62," ",入力ｼｰﾄ!G62) ->  | G23: =入力ｼｰﾄ!J62 ->  | H23: 出場は （ 可 ・ 否 ）
A24: Ｂチーム
A25: 区間 | B25: 登録番号 | D25: 氏名 | G25: 学年 | I25: 健康診断結果
A26: 第１区 | B26: =IF(入力ｼｰﾄ!E64=""," ",入力ｼｰﾄ!E64) ->  | C26: =CONCATENATE(入力ｼｰﾄ!F64," ",入力ｼｰﾄ!G64) ->  | G26: =入力ｼｰﾄ!J64 ->  | H26: 出場は （ 可 ・ 否 ）
A27: 第２区 | B27: =IF(入力ｼｰﾄ!E65=""," ",入力ｼｰﾄ!E65) ->  | C27: =CONCATENATE(入力ｼｰﾄ!F65," ",入力ｼｰﾄ!G65) ->  | G27: =入力ｼｰﾄ!J65 ->  | H27: 出場は （ 可 ・ 否 ）
A28: 第３区 | B28: =IF(入力ｼｰﾄ!E66=""," ",入力ｼｰﾄ!E66) ->  | C28: =CONCATENATE(入力ｼｰﾄ!F66," ",入力ｼｰﾄ!G66) ->  | G28: =入力ｼｰﾄ!J66 ->  | H28: 出場は （ 可 ・ 否 ）
A29: 第４区 | B29: =IF(入力ｼｰﾄ!E67=""," ",入力ｼｰﾄ!E67) ->  | C29: =CONCATENATE(入力ｼｰﾄ!F67," ",入力ｼｰﾄ!G67) ->  | G29: =入力ｼｰﾄ!J67 ->  | H29: 出場は （ 可 ・ 否 ）
A30: 補欠 | B30: =IF(入力ｼｰﾄ!E68=""," ",入力ｼｰﾄ!E68) ->  | C30: =CONCATENATE(入力ｼｰﾄ!F68," ",入力ｼｰﾄ!G68) ->  | G30: =入力ｼｰﾄ!J68 ->  | H30: 出場は （ 可 ・ 否 ）
A31: 補欠 | B31: =IF(入力ｼｰﾄ!E69=""," ",入力ｼｰﾄ!E69) ->  | C31: =CONCATENATE(入力ｼｰﾄ!F69," ",入力ｼｰﾄ!G69) ->  | G31: =入力ｼｰﾄ!J69 ->  | H31: 出場は （ 可 ・ 否 ）
A32: ＊複数チーム参加する場合には補欠は他のチームのメンバーと同じ者が重なってもよい。
A33: ※ナンバーはチーム別の番号で、後日郵送するプログラム参照のこと。
A35: ロードレース
A37: ナンバー | B37: 登録番号 | D37: 氏名 | G37: 学年 | I37: 健康診断結果
A38: ※ | B38: =IF(入力ｼｰﾄ!E71=""," ",入力ｼｰﾄ!E71) ->  | C38: =CONCATENATE(入力ｼｰﾄ!F71," ",入力ｼｰﾄ!G71) ->  | G38: =入力ｼｰﾄ!J71 ->  | H38: 出場は （ 可 ・ 否 ）
A39: ※ | B39: =IF(入力ｼｰﾄ!E72=""," ",入力ｼｰﾄ!E72) ->  | C39: =CONCATENATE(入力ｼｰﾄ!F72," ",入力ｼｰﾄ!G72) ->  | G39: =入力ｼｰﾄ!J72 ->  | H39: 出場は （ 可 ・ 否 ）
A40: ※ | B40: =IF(入力ｼｰﾄ!E73=""," ",入力ｼｰﾄ!E73) ->  | C40: =CONCATENATE(入力ｼｰﾄ!F73," ",入力ｼｰﾄ!G73) ->  | G40: =入力ｼｰﾄ!J73 ->  | H40: 出場は （ 可 ・ 否 ）
A41: ※ナンバーは個人別の番号で、後日郵送するプログラム参照のこと。
A43: 顧問名 （審判） | B43: =IF(入力ｼｰﾄ!F10="","",入力ｼｰﾄ!F10) ->  | H43: 希望 審判種別 | I43: =IF(入力ｼｰﾄ!F11="","",入力ｼｰﾄ!F11) -> 
A44: ＊複数名の審判をお願いできる場合にはすべての方のお名前をお書きください。
B46: 駅伝参加費 | D46: ﾛｰﾄﾞﾚｰｽ参加費
B47: =入力ｼｰﾄ!G14 -> 0 | D47: =COUNTA(入力ｼｰﾄ!E71:E73) -> 0 | G47: 合計
B48: =B47*2000 -> 0 | D48: =D47*600 -> 0 | G48: =B48+D48 -> 0 | L48: （用紙をコピーして２部提出してください）

Sheet 省略学校名
A1: 支部 | B1: 1 | C1: コード | D1: ﾌﾘｶﾞﾅ | E1: 正式名称 | F1: 省略 | G1: 支部
A2: 学校番号 | B2: 2 | C2: ＤＢ | D2: N1 | E2: N2 | F2: N3 | G2: KC
A3: 401 | B3: 401 | C3: 540401 | E3: 筑波大学附属駒場高等学校 | F3: 筑波大駒場 | G3: 54
A4: 402 | B4: 402 | C4: 540402 | E4: 東京学芸大学附属高等学校 | F4: 学大附 | G4: 54
A5: 403 | B5: 403 | C5: 540403 | E5: 東京都立園芸高等学校 | F5: 都園芸 | G5: 54
A6: 404 | B6: 404 | C6: 540404 | E6: 東京都立世田谷泉高等学校 | F6: 都世田谷泉 | G6: 54
A7: 405 | B7: 405 | C7: 540405 | E7: 東京都立世田谷総合高等学校 | F7: 都世田谷総合 | G7: 54
A8: 406 | B8: 406 | C8: 540406 | E8: 東京都立桜町高等学校 | F8: 都桜町 | G8: 54
A9: 409 | B9: 409 | C9: 540409 | E9: 東京都立千歳丘高等学校 | F9: 都千歳丘 | G9: 54
A10: 410 | B10: 410 | C10: 540410 | E10: 東京都立芦花高等学校 | F10: 都芦花 | G10: 54
A11: 411 | B11: 411 | C11: 540411 | E11: 東京都立松原高等学校 | F11: 都松原 | G11: 54
A12: 413 | B12: 413 | C12: 540413 | E12: 東京都立深沢高等学校 | F12: 都深沢 | G12: 54
A13: 414 | B13: 414 | C13: 540414 | E13: 鴎友学園女子高等学校 | F13: 鴎友学園女 | G13: 54
A14: 415 | B14: 415 | C14: 540415 | E14: 科学技術学園高等学校 | F14: 科学技術学園 | G14: 54
A15: 417 | B15: 417 | C15: 540417 | E15: 恵泉女学園高等学校 | F15: 恵泉女学園 | G15: 54
A16: 418 | B16: 418 | C16: 540418 | E16: 佼成学園女子高等学校 | F16: 佼成学園女 | G16: 54
A17: 419 | B17: 419 | C17: 540419 | E17: 国士舘高等学校 | F17: 国士舘 | G17: 54
A18: 420 | B18: 420 | C18: 540420 | E18: 駒澤大学高等学校 | F18: 駒大 | G18: 54
A19: 421 | B19: 421 | C19: 540421 | E19: 駒場学園高等学校 | F19: 駒場学園 | G19: 54
A20: 422 | B20: 422 | C20: 540422 | E20: 駒場東邦高等学校 | F20: 駒場東邦 | G20: 54
A21: 423 | B21: 423 | C21: 540423 | E21: 松蔭高等学校 | F21: 松蔭 | G21: 54
A22: 424 | B22: 424 | C22: 540424 | E22: 昭和女子大学附属昭和高等学校 | F22: 昭和女子大附 | G22: 54
A23: 425 | B23: 425 | C23: 540425 | E23: 成城学園高等学校 | F23: 成城学園 | G23: 54
A24: 428 | B24: 428 | C24: 540428 | E24: 世田谷学園高等学校 | F24: 世田谷学園 | G24: 54
A25: 430 | B25: 430 | C25: 540430 | E25: 大東学園高等学校 | F25: 大東学園 | G25: 54
A26: 432 | B26: 432 | C26: 540432 | E26: 三田国際学園高等学校 | F26: 三田国際学園 | G26: 54
A27: 433 | B27: 433 | C27: 540433 | E27: 東京農業大学第一高等学校 | F27: 東農大一 | G27: 54
A28: 434 | B28: 434 | C28: 540434 | E28: 東京都市大学等々力高等学校 | F28: 都市大等々力 | G28: 54
A29: 435 | B29: 435 | C29: 540435 | E29: 田園調布学園高等部 | F29: 田園調布学園 | G29: 54
A30: 436 | B30: 436 | C30: 540436 | E30: 日本女子体育大学附属二階堂高等学校 | F30: 日女体二階堂 | G30: 54
A31: 437 | B31: 437 | C31: 540437 | E31: 日本学園高等学校 | F31: 日本学園 | G31: 54
A32: 438 | B32: 438 | C32: 540438 | E32: 日本大学櫻丘高等学校 | F32: 日大櫻丘 | G32: 54
A33: 439 | B33: 439 | C33: 540439 | E33: 東京都市大学付属高等学校 | F33: 都市大付属 | G33: 54
A34: 440 | B34: 440 | C34: 540440 | E34: 目黒星美学園高等学校 | F34: 目黒星美学園 | G34: 54
A35: 441 | B35: 441 | C35: 540441 | E35: 東京大学教育学部附属中等教育学校 | F35: 東大附属 | G35: 54
A36: 442 | B36: 442 | C36: 540442 | E36: 東京都立鷺宮高等学校 | F36: 都鷺宮 | G36: 54
A37: 443 | B37: 443 | C37: 540443 | E37: 東京都立中野工業高等学校 | F37: 都中野工 | G37: 54
A38: 444 | B38: 444 | C38: 540444 | E38: 東京都立富士高等学校 | F38: 都富士 | G38: 54
A39: 445 | B39: 445 | C39: 540445 | E39: 東京都立武蔵丘高等学校 | F39: 都武蔵丘 | G39: 54
A40: 448 | B40: 448 | C40: 540448 | E40: 実践学園高等学校 | F40: 実践学園 | G40: 54
A41: 449 | B41: 449 | C41: 540449 | E41: 東亜学園高等学校 | F41: 東亜学園 | G41: 54
A42: 451 | B42: 451 | C42: 540451 | E42: 宝仙学園高等学校 | F42: 宝仙学園 | G42: 54
A43: 452 | B43: 452 | C43: 540452 | E43: 堀越高等学校 | F43: 堀越 | G43: 54
A44: 453 | B44: 453 | C44: 540453 | E44: 明治大学付属中野高等学校 | F44: 明大中野 | G44: 54
A45: 454 | B45: 454 | C45: 540454 | E45: 東京都立永福学園 | F45: 都永福学園 | G45: 54
A46: 456 | B46: 456 | C46: 540456 | E46: 東京都立杉並総合高等学校 | F46: 都杉並総合 | G46: 54
A47: 457 | B47: 457 | C47: 540457 | E47: 東京都立杉並高等学校 | F47: 都杉並 | G47: 54
A48: 458 | B48: 458 | C48: 540458 | E48: 東京都立杉並工業高等学校 | F48: 都杉並工 | G48: 54
A49: 459 | B49: 459 | C49: 540459 | E49: 東京都立豊多摩高等学校 | F49: 都豊多摩 | G49: 54
A50: 460 | B50: 460 | C50: 540460 | E50: 東京都立西高等学校 | F50: 都西 | G50: 54
A51: 461 | B51: 461 | C51: 540461 | E51: 東京都立農芸高等学校 | F51: 都農芸 | G51: 54
A52: 464 | B52: 464 | C52: 540464 | E52: 佼成学園高等学校 | F52: 佼成学園 | G52: 54
A53: 465 | B53: 465 | C53: 540465 | E53: 國學院大學久我山高等学校 | F53: 國學院久我山 | G53: 54
A54: 467 | B54: 467 | C54: 540467 | E54: 専修大学附属高等学校 | F54: 専大附 | G54: 54
A55: 468 | B55: 468 | C55: 540468 | E55: 中央大学杉並高等学校 | F55: 中大杉並 | G55: 54
A56: 469 | B56: 469 | C56: 540469 | E56: 東京立正高等学校 | F56: 東京立正 | G56: 54
A57: 470 | B57: 470 | C57: 540470 | E57: 日本大学第二高等学校 | F57: 日大二 | G57: 54
A58: 471 | B58: 471 | C58: 540471 | E58: 日本大学鶴ヶ丘高等学校 | F58: 日大鶴ヶ丘 | G58: 54
A59: 472 | B59: 472 | C59: 540472 | E59: 文化学園大学杉並高等学校 | F59: 文大杉並 | G59: 54
A60: 473 | B60: 473 | C60: 540473 | E60: 立教女学院高等学校 | F60: 立教女学院 | G60: 54
A61: 475 | B61: 475 | C61: 540475 | E61: 東京都立中央ろう学校 | F61: 都中央ろう | G61: 54
A62: 501 | B62: 501 | C62: 550501 | E62: 東京都立武蔵高等学校 | F62: 都武蔵 | G62: 55
A63: 502 | B63: 502 | C63: 550502 | E63: 東京都立武蔵野北高等学校 | F63: 都武蔵野北 | G63: 55
A64: 503 | B64: 503 | C64: 550503 | E64: 聖徳学園高等学校 | F64: 聖徳学園 | G64: 55
A65: 504 | B65: 504 | C65: 550504 | E65: 成蹊高等学校 | F65: 成蹊 | G65: 55
A66: 505 | B66: 505 | C66: 550505 | E66: 法政大学高等学校 | F66: 法政 | G66: 55
A67: 506 | B67: 506 | C67: 550506 | E67: 藤村女子高等学校 | F67: 藤村女 | G67: 55
A68: 507 | B68: 507 | C68: 550507 | E68: 吉祥女子高等学校 | F68: 吉祥女 | G68: 55
A69: 508 | B69: 508 | C69: 550508 | E69: 武蔵野東高等専修学校 | F69: 武蔵野東高専 | G69: 55
A70: 509 | B70: 509 | C70: 550509 | E70: 東京都立三鷹中等教育学校 | F70: 都三鷹中等 | G70: 55
A71: 510 | B71: 510 | C71: 550510 | E71: 大成高等学校 | F71: 大成 | G71: 55
A72: 511 | B72: 511 | C72: 550511 | E72: 明星学園高等学校 | F72: 明星学園 | G72: 55
A73: 512 | B73: 512 | C73: 550512 | E73: 東京都立多摩科学技術高等学校 | F73: 都多摩科技 | G73: 55
A74: 513 | B74: 513 | C74: 550513 | E74: 東京都立小金井北高等学校 | F74: 都小金井北 | G74: 55
A75: 514 | B75: 514 | C75: 550514 | E75: 国際基督教大学高等学校 | F75: ICU | G75: 55
A76: 515 | B76: 515 | C76: 550515 | E76: 中央大学附属高等学校 | F76: 中大附 | G76: 55
A77: 516 | B77: 516 | C77: 550516 | E77: 東京電機大学高等学校 | F77: 東京電機大学 | G77: 55
A78: 517 | B78: 517 | C78: 550517 | E78: 東京都立小川高等学校 | F78: 都小川 | G78: 55
A79: 519 | B79: 519 | C79: 550519 | E79: 東京都立成瀬高等学校 | F79: 都成瀬 | G79: 55
A80: 520 | B80: 520 | C80: 550520 | E80: 東京都立町田高等学校 | F80: 都町田 | G80: 55
A81: 521 | B81: 521 | C81: 550521 | E81: 東京都立野津田高等学校 | F81: 都野津田 | G81: 55
A82: 522 | B82: 522 | C82: 550522 | E82: 東京都立山崎高等学校 | F82: 都山崎 | G82: 55
A83: 523 | B83: 523 | C83: 550523 | E83: 東京都立町田工業高等学校 | F83: 都町田工 | G83: 55
A84: 524 | B84: 524 | C84: 550524 | E84: 桜美林高等学校 | F84: 桜美林 | G84: 55
A85: 525 | B85: 525 | C85: 550525 | E85: 玉川学園高等部 | F85: 玉川学園 | G85: 55
A86: 526 | B86: 526 | C86: 550526 | E86: 日本大学第三高等学校 | F86: 日大三 | G86: 55
A87: 528 | B87: 528 | C87: 550528 | E87: 和光高等学校 | F87: 和光 | G87: 55
A88: 529 | B88: 529 | C88: 550529 | E88: 東京都立永山高等学校 | F88: 都永山 | G88: 55
A89: 530 | B89: 530 | C89: 550530 | E89: サレジオ工業高等専門学校 | F89: サレジオ高専 | G89: 55
A90: 531 | B90: 531 | C90: 550531 | E90: 大妻多摩高等学校 | F90: 大妻多摩 | G90: 55
A91: 532 | B91: 532 | C91: 550532 | E91: 多摩大学附属聖ヶ丘高等学校 | F91: 聖ヶ丘 | G91: 55
A92: 534 | B92: 534 | C92: 550534 | E92: 東京都立神代高等学校 | F92: 都神代 | G92: 55
A93: 535 | B93: 535 | C93: 550535 | E93: 東京都立調布北高等学校 | F93: 都調布北 | G93: 55
A94: 536 | B94: 536 | C94: 550536 | E94: 東京都立調布南高等学校 | F94: 都調布南 | G94: 55
A95: 537 | B95: 537 | C95: 550537 | E95: 桐朋女子高等学校 | F95: 桐朋女 | G95: 55
A96: 538 | B96: 538 | C96: 550538 | E96: 晃華学園高等学校 | F96: 晃華学園 | G96: 55
A97: 539 | B97: 539 | C97: 550539 | E97: 東京都立狛江高等学校 | F97: 都狛江 | G97: 55
A98: 540 | B98: 540 | C98: 550540 | E98: 東京都立若葉総合高等学校 | F98: 都若葉総合 | G98: 55
A99: 541 | B99: 541 | C99: 550541 | E99: 駒沢学園女子高等学校 | F99: 駒沢女 | G99: 55
A100: 542 | B100: 542 | C100: 550542 | E100: 東京都立田無高等学校 | F100: 都田無 | G100: 55
A101: 543 | B101: 543 | C101: 550543 | E101: 東京都立田無工業高等学校 | F101: 都田無工 | G101: 55
A102: 545 | B102: 545 | C102: 550545 | E102: 東京都立府中高等学校 | F102: 都府中 | G102: 55
A103: 546 | B103: 546 | C103: 550546 | E103: 東京都立府中東高等学校 | F103: 都府中東 | G103: 55
A104: 547 | B104: 547 | C104: 550547 | E104: 東京都立府中西高等学校 | F104: 都府中西 | G104: 55
A105: 548 | B105: 548 | C105: 550548 | E105: 東京都立府中工業高等学校 | F105: 都府中工 | G105: 55
A106: 550 | B106: 550 | C106: 550550 | E106: 明星高等学校 | F106: 明星 | G106: 55
A107: 552 | B107: 552 | C107: 550552 | E107: 東京都立保谷高等学校 | F107: 都保谷 | G107: 55
A108: 553 | B108: 553 | C108: 550553 | E108: 武蔵野女子学院高等学校 | F108: 武蔵野女 | G108: 55
A109: 554 | B109: 554 | C109: 550554 | E109: 東京都立清瀬高等学校 | F109: 都清瀬 | G109: 55
A110: 557 | B110: 557 | C110: 550557 | E110: 東京都立東久留米総合高等学校 | F110: 都東久留米総 | G110: 55
A111: 558 | B111: 558 | C111: 550558 | E111: 東京都立久留米西高等学校 | F111: 都久留米西 | G111: 55
A112: 560 | B112: 560 | C112: 550560 | E112: 東京都立国立高等学校 | F112: 都国立 | G112: 55
A113: 561 | B113: 561 | C113: 550561 | E113: 東京都立第五商業高等学校 | F113: 都五商 | G113: 55
A114: 562 | B114: 562 | C114: 550562 | E114: 桐朋高等学校 | F114: 桐朋 | G114: 55
A115: 563 | B115: 563 | C115: 550563 | E115: 東京都立日野高等学校 | F115: 都日野 | G115: 55
A116: 564 | B116: 564 | C116: 550564 | E116: 東京都立日野台高等学校 | F116: 都日野台 | G116: 55
A117: 565 | B117: 565 | C117: 550565 | E117: 東京都立南平高等学校 | F117: 都南平 | G117: 55
A118: 567 | B118: 567 | C118: 550567 | E118: 東京都立国分寺高等学校 | F118: 都国分寺 | G118: 55
A119: 568 | B119: 568 | C119: 550568 | E119: 早稲田実業学校高等部 | F119: 早稲田実 | G119: 55
A120: 569 | B120: 569 | C120: 550569 | E120: 明治大学付属明治高等学校 | F120: 明大明治 | G120: 55
A121: 570 | B121: 570 | C121: 550570 | E121: 東京都立町田総合高等学校 | F121: 都町田総合 | G121: 55
A122: 601 | B122: 601 | C122: 560601 | E122: 東京都立立川国際中等教育学校 | F122: 都立川国際 | G122: 56
A123: 602 | B123: 602 | C123: 560602 | E123: 東京都立砂川高等学校 | F123: 都砂川 | G123: 56
A124: 603 | B124: 603 | C124: 560603 | E124: 東京都立立川高等学校 | F124: 都立川 | G124: 56
A125: 604 | B125: 604 | C125: 560604 | E125: 東京都立立川ろう学校 | F125: 都立川ろう | G125: 56
A126: 605 | B126: 605 | C126: 560605 | E126: 昭和第一学園高等学校 | F126: 昭和一学園 | G126: 56
A127: 606 | B127: 606 | C127: 560606 | E127: 立川女子高等学校 | F127: 立川女 | G127: 56
A128: 607 | B128: 607 | C128: 560607 | E128: 東京都立片倉高等学校 | F128: 都片倉 | G128: 56
A129: 608 | B129: 608 | C129: 560608 | E129: 東京都立翔陽高等学校 | F129: 都翔陽 | G129: 56
A130: 610 | B130: 610 | C130: 560610 | E130: 東京都立八王子北高等学校 | F130: 都八王子北 | G130: 56
A131: 611 | B131: 611 | C131: 560611 | E131: 東京都立八王子桑志高等学校 | F131: 都八王子桑志 | G131: 56
A132: 613 | B132: 613 | C132: 560613 | E132: 東京都立八王子東高等学校 | F132: 都八王子東 | G132: 56
A133: 614 | B133: 614 | C133: 560614 | E133: 東京都立富士森高等学校 | F133: 都富士森 | G133: 56
A134: 615 | B134: 615 | C134: 560615 | E134: 東京都立松が谷高等学校 | F134: 都松が谷 | G134: 56
A135: 616 | B135: 616 | C135: 560616 | E135: 東京都立南多摩中等教育学校 | F135: 都南多摩中等 | G135: 56
A136: 617 | B136: 617 | C136: 560617 | E136: 穎明館高等学校 | F136: 穎明館 | G136: 56
A137: 618 | B137: 618 | C137: 560618 | E137: 共立女子第二高等学校 | F137: 共立女二 | G137: 56
A138: 619 | B138: 619 | C138: 560619 | E138: 工学院大学附属高等学校 | F138: 工学院 | G138: 56
A139: 621 | B139: 621 | C139: 560621 | E139: 帝京八王子高等学校 | F139: 帝京八王子 | G139: 56
A140: 622 | B140: 622 | C140: 560622 | E140: 八王子学園八王子高等学校 | F140: 八王子 | G140: 56
A141: 623 | B141: 623 | C141: 560623 | E141: 八王子実践高等学校 | F141: 八王子実践 | G141: 56
A142: 624 | B142: 624 | C142: 560624 | E142: 明治大学付属中野八王子高等学校 | F142: 明中八王子 | G142: 56
A143: 626 | B143: 626 | C143: 560626 | E143: 東京工業高等専門学校 | F143: 東京工業高専 | G143: 56
A144: 627 | B144: 627 | C144: 560627 | E144: 東京都立小平高等学校 | F144: 都小平 | G144: 56
A145: 628 | B145: 628 | C145: 560628 | E145: 東京都立小平西高等学校 | F145: 都小平西 | G145: 56
A146: 629 | B146: 629 | C146: 560629 | E146: 東京都立小平南高等学校 | F146: 都小平南 | G146: 56
A147: 630 | B147: 630 | C147: 560630 | E147: 錦城高等学校 | F147: 錦城 | G147: 56
A148: 631 | B148: 631 | C148: 560631 | E148: 白梅学園高等学校 | F148: 白梅学園 | G148: 56
A149: 632 | B149: 632 | C149: 560632 | E149: 創価高等学校 | F149: 創価 | G149: 56
A150: 633 | B150: 633 | C150: 560633 | E150: 拓殖大学第一高等学校 | F150: 拓大一 | G150: 56
A151: 635 | B151: 635 | C151: 560635 | E151: 東京都立東大和高等学校 | F151: 都東大和 | G151: 56
A152: 636 | B152: 636 | C152: 560636 | E152: 東京都立東大和南高等学校 | F152: 都東大和南 | G152: 56
A153: 637 | B153: 637 | C153: 560637 | E153: 東京都立多摩工業高等学校 | F153: 都多摩工 | G153: 56
A154: 638 | B154: 638 | C154: 560638 | E154: 東京都立福生高等学校 | F154: 都福生 | G154: 56
A155: 640 | B155: 640 | C155: 560640 | E155: 東京都立多摩高等学校 | F155: 都多摩 | G155: 56
A156: 642 | B156: 642 | C156: 560642 | E156: 東京都立昭和高等学校 | F156: 都昭和 | G156: 56
A157: 643 | B157: 643 | C157: 560643 | E157: 東京都立拝島高等学校 | F157: 都拝島 | G157: 56
A158: 644 | B158: 644 | C158: 560644 | E158: 啓明学園高等学校 | F158: 啓明学園 | G158: 56
A159: 646 | B159: 646 | C159: 560646 | E159: 東京都立秋留台高等学校 | F159: 都秋留台 | G159: 56
A160: 647 | B160: 647 | C160: 560647 | E160: 東海大学菅生高等学校 | F160: 東海大菅生 | G160: 56
A161: 648 | B161: 648 | C161: 560648 | E161: 東京都立武蔵村山高等学校 | F161: 都武蔵村山 | G161: 56
A162: 649 | B162: 649 | C162: 560649 | E162: 東京都立上水高等学校 | F162: 都上水 | G162: 56
A163: 650 | B163: 650 | C163: 560650 | E163: 東京都立東村山高等学校 | F163: 都東村山 | G163: 56
A164: 651 | B164: 651 | C164: 560651 | E164: 東京都立東村山西高等学校 | F164: 都東村山西 | G164: 56
A165: 652 | B165: 652 | C165: 560652 | E165: 日本体育大学桜華高等学校 | F165: 日体大桜華 | G165: 56
A166: 653 | B166: 653 | C166: 560653 | E166: 明治学院東村山高等学校 | F166: 明学東村山 | G166: 56
A167: 654 | B167: 654 | C167: 560654 | E167: 明法高等学校 | F167: 明法 | G167: 56
A168: 655 | B168: 655 | C168: 560655 | E168: 東京都立羽村高等学校 | F168: 都羽村 | G168: 56
A169: 657 | B169: 657 | C169: 560657 | E169: 東京都立瑞穂農芸高等学校 | F169: 都瑞穂農芸 | G169: 56
A170: 658 | B170: 658 | C170: 560658 | E170: 東京都立青梅総合高等学校 | F170: 都青梅総合 | G170: 56
A171: 659 | B171: 659 | C171: 560659 | E171: 帝京大学高等学校 | F171: 帝京大高 | G171: 56
A172: 660 | B172: 660 | C172: 560660 | E172: 東京都立羽村特別支援学校 | F172: 都羽村特支 | G172: 56

Sheet 氏名ﾃﾞｰﾀ (hidden)
A1: 0 | C1: 2018，09，28現在
A2: 0.1 | B2: ５桁 | C2: 氏名 | D2: 全角 | E2: ﾌﾘｶﾞﾅ | F2: 半角 | G2: 学年 | I2: 性別
A3: 0.2 | B3: 半角 | C3: 性 | D3: 名 | E3: 性 | F3: 名 | G3: 半角 | I3: 全角
A4: 1 | B4: 40117 | C4: 小松 | D4: 俊介 | E4: ｺﾏﾂ | F4: ｼｭﾝｽｹ | G4: 3 | I4: 男
A5: 2 | B5: 40118 | C5: 西原 | D5: 隆大 | E5: ﾆｼﾊﾗ | F5: ﾘｭｳﾀﾞｲ | G5: 3 | I5: 男
A6: 3 | B6: 40119 | C6: 奥田 | D6: 大統 | E6: ｵｸﾀﾞ | F6: ﾋﾛﾄ | G6: 3 | I6: 男
A7: 4 | B7: 40120 | C7: 増田 | D7: 翼 | E7: ﾏｽﾀﾞ | F7: ﾂﾊﾞｻ | G7: 3 | I7: 男
A8: 5 | B8: 40121 | C8: 小野田 | D8: 吉兆 | E8: ｵﾉﾀﾞ | F8: ｷﾖｼ | G8: 3 | I8: 男
A9: 6 | B9: 40122 | C9: 山﨑 | D9: 貴之 | E9: ﾔﾏｻﾞｷ | F9: ﾀｶﾕｷ | G9: 3 | I9: 男
A10: 7 | B10: 40123 | C10: 畠山 | D10: 裕亮 | E10: ﾊﾀｹﾔﾏ | F10: ﾕｳｽｹ | G10: 3 | I10: 男
A11: 8 | B11: 40124 | C11: 稲垣 | D11: 怜 | E11: ｲﾅｶﾞｷ | F11: ﾚｲ | G11: 3 | I11: 男
A12: 9 | B12: 40125 | C12: 欧張 | D12: 沢世 | E12: ｵｳﾁｮｳ | F12: ﾀｸﾖ | G12: 3 | I12: 男
A13: 10 | B13: 40126 | C13: 香山 | D13: 怜太 | E13: ｶﾔﾏ | F13: ﾘｮｳﾀ | G13: 3 | I13: 男
A14: 11 | B14: 40129 | C14: 上田 | D14: 楽 | E14: ｳｴﾀﾞ | F14: ｶﾞｸ | G14: 2 | I14: 男
A15: 12 | B15: 40130 | C15: 佐野 | D15: 小次郎 | E15: ｻﾉ | F15: ｺｼﾞﾛｳ | G15: 2 | I15: 男
A16: 13 | B16: 40131 | C16: 下出 | D16: 大智 | E16: ｼﾓﾃﾞ | F16: ﾀﾞｲﾁ | G16: 2 | I16: 男
A17: 14 | B17: 40132 | C17: 成田 | D17: 楽 | E17: ﾅﾘﾀ | F17: ｶﾞｸ | G17: 2 | I17: 男
A18: 15 | B18: 40133 | C18: 松村 | D18: 薫 | E18: ﾏﾂﾑﾗ | F18: ｶｵﾙ | G18: 2 | I18: 男
A19: 16 | B19: 40134 | C19: 中西 | D19: 凛 | E19: ﾅｶﾆｼ | F19: ﾘﾝ | G19: 3 | I19: 男
A20: 17 | B20: 40135 | C20: 浅岡 | D20: 凛 | E20: ｱｻｵｶ | F20: ﾘﾝ | G20: 1 | I20: 男
A21: 18 | B21: 40136 | C21: 粟野 | D21: 稜也 | E21: ｱﾜﾉ | F21: ﾘｮｳﾔ | G21: 1 | I21: 男
A22: 19 | B22: 40137 | C22: 安藤 | D22: 翔太郎 | E22: ｱﾝﾄﾞｳ | F22: ｼｮｳﾀﾛｳ | G22: 1 | I22: 男
A23: 20 | B23: 40138 | C23: 石津 | D23: 昂椰 | E23: ｲｼﾂﾞ | F23: ｺｳﾔ | G23: 1 | I23: 男
A24: 21 | B24: 40139 | C24: 佐々木 | D24: 陽生 | E24: ｻｻｷ | F24: ﾊﾙﾄ | G24: 1 | I24: 男
A25: 22 | B25: 40140 | C25: 瀧野 | D25: 幹拡 | E25: ﾀｷﾉ | F25: ﾐｷﾋﾛ | G25: 1 | I25: 男
A26: 23 | B26: 40141 | C26: 土屋 | D26: 皓太郎 | E26: ﾂﾁﾔ | F26: ｺｳﾀﾛｳ | G26: 1 | I26: 男
A27: 24 | B27: 40142 | C27: 緑川 | D27: 汰也 | E27: ﾐﾄﾞﾘｶﾜ | F27: ﾀｲﾔ | G27: 1 | I27: 男
A28: 25 | B28: 40143 | C28: 森田 | D28: 剛煕 | E28: ﾓﾘﾀ | F28: ｺﾞｳｷ | G28: 1 | I28: 男
A29: 26 | B29: 40144 | C29: 赤羽 | D29: 克仁 | E29: ｱｶﾊﾞﾈ | F29: ｶﾂﾋﾄ | G29: 1 | I29: 男
A30: 27 | B30: 40201 | C30: 荻野 | D30: 雄渡 | E30: ｵｷﾞﾉ | F30: ﾕｳﾄ | G30: 2 | I30: 男
A31: 28 | B31: 40202 | C31: 岸田 | D31: 拓馬 | E31: ｷｼﾀﾞ | F31: ﾀｸﾏ | G31: 2 | I31: 男
A32: 29 | B32: 40203 | C32: 新井 | D32: 康平 | E32: ｱﾗｲ | F32: ｺｳﾍｲ | G32: 2 | I32: 男
A33: 30 | B33: 40204 | C33: 小澤 | D33: 勇輝 | E33: ｵｻﾞﾜ | F33: ﾕｳｷ | G33: 1 | I33: 男
A34: 31 | B34: 40205 | C34: 髙野 | D34: 遥飛 | E34: ﾀｶﾉ | F34: ﾊﾙﾋ | G34: 1 | I34: 男
A35: 32 | B35: 40206 | C35: 角田 | D35: 凌太郎 | E35: ﾂﾉﾀﾞ | F35: ﾘｮｳﾀﾛｳ | G35: 1 | I35: 男
A36: 33 | B36: 40207 | C36: 中井 | D36: 紀希 | E36: ﾅｶｲ | F36: ﾄｼｷ | G36: 1 | I36: 男
A37: 34 | B37: 40208 | C37: 中島 | D37: 勇希 | E37: ﾅｶｼﾞﾏ | F37: ﾕｳｷ | G37: 1 | I37: 男
A38: 35 | B38: 40242 | C38: 青柳 | D38: 俊吾 | E38: ｱｵﾔｷﾞ | F38: ｼｭﾝｺﾞ | G38: 3 | I38: 男
A39: 36 | B39: 40243 | C39: 池端 | D39: 諒治 | E39: ｲｹﾊﾞﾀ | F39: ﾘｮｳｼﾞ | G39: 3 | I39: 男
A40: 37 | B40: 40245 | C40: 國分 | D40: 裕介 | E40: ｺｸﾌﾞﾝ | F40: ﾕｳｽｹ | G40: 3 | I40: 男
A41: 38 | B41: 40246 | C41: 近藤 | D41: 智隆 | E41: ｺﾝﾄﾞｳ | F41: ﾄﾓﾀｶ | G41: 3 | I41: 男
A42: 39 | B42: 40247 | C42: 佐藤 | D42: 一也 | E42: ｻﾄｳ | F42: ｲﾁﾔ | G42: 3 | I42: 男
A43: 40 | B43: 40248 | C43: 高山 | D43: 兼輔 | E43: ﾀｶﾔﾏ | F43: ｹﾝｽｹ | G43: 3 | I43: 男
A44: 41 | B44: 40250 | C44: 渡邊 | D44: 英世 | E44: ﾜﾀﾅﾍﾞ | F44: ﾋﾃﾞﾖ | G44: 3 | I44: 男
A45: 42 | B45: 40255 | C45: 石澤 | D45: みの里 | E45: ｲｼｻﾞﾜ | F45: ﾐﾉﾘ | G45: 2 | I45: 女
A46: 43 | B46: 40257 | C46: 川瀬 | D46: 湖夏 | E46: ｶﾜｾ | F46: ｺﾅﾂ | G46: 2 | I46: 女
A47: 44 | B47: 40258 | C47: 有村 | D47: 優良 | E47: ｱﾘﾑﾗ | F47: ﾕﾗ | G47: 1 | I47: 女
A48: 45 | B48: 40301 | C48: 若野 | D48: 於土 | E48: ﾜｶﾉ | F48: ｵﾄ | G48: 1 | I48: 男
A49: 46 | B49: 40351 | C49: 安田 | D49: 由真 | E49: ﾔｽﾀﾞ | F49: ﾕﾏ | G49: 1 | I49: 女
A50: 47 | B50: 40501 | C50: 伊藤 | D50: 基希 | E50: ｲﾄｳ | F50: ﾓﾄｷ | G50: 2 | I50: 男
A51: 48 | B51: 40503 | C51: 金子 | D51: 陽空 | E51: ｶﾈｺ | F51: ﾊﾙｸ | G51: 2 | I51: 男
A52: 49 | B52: 40504 | C52: 前場 | D52: 直人 | E52: ﾏｴﾊﾞ | F52: ﾅｵﾄ | G52: 2 | I52: 男
A53: 50 | B53: 40505 | C53: 坂口 | D53: 航 | E53: ｻｶｸﾞﾁ | F53: ｺｳ | G53: 1 | I53: 男
A54: 51 | B54: 40506 | C54: 瀧本 | D54: 照法 | E54: ﾀｷﾓﾄ | F54: ﾐﾂﾉﾘ | G54: 1 | I54: 男
A55: 52 | B55: 40507 | C55: 吉田 | D55: 祥 | E55: ﾖｼﾀﾞ | F55: ｼｮｳ | G55: 1 | I55: 男
A56: 53 | B56: 40546 | C56: 木所 | D56: 大起 | E56: ｷﾄﾞｺﾛ | F56: ﾀﾞｲｷ | G56: 3 | I56: 男
A57: 54 | B57: 40547 | C57: 菅田 | D57: 雄大 | E57: ｽｹﾞﾀ | F57: ﾕｳﾀﾞｲ | G57: 3 | I57: 男
A58: 55 | B58: 40552 | C58: 森重 | D58: 叶星 | E58: ﾓﾘｼｹﾞ | F58: ｶﾅｾ | G58: 3 | I58: 女
A59: 56 | B59: 40553 | C59: 奥井 | D59: ゆりあ | E59: ｵｸｲ | F59: ﾕﾘｱ | G59: 2 | I59: 女
A60: 57 | B60: 40554 | C60: 高橋 | D60: 凛 | E60: ﾀｶﾊｼ | F60: ﾘﾝ | G60: 2 | I60: 女
A61: 58 | B61: 40555 | C61: 萩谷 | D61: 萌梨 | E61: ﾊｷﾞﾔ | F61: ﾓｴﾘ | G61: 2 | I61: 女
A62: 59 | B62: 40556 | C62: 中井 | D62: 萌未 | E62: ﾅｶｲ | F62: ﾒｸﾞﾐ | G62: 1 | I62: 女
A63: 60 | B63: 40602 | C63: 工藤 | D63: 広揮 | E63: ｸﾄﾞｳ | F63: ﾋﾛｷ | G63: 2 | I63: 男
A64: 61 | B64: 40603 | C64: 本田 | D64: 士英 | E64: ﾎﾝﾀﾞ | F64: ｼﾞｪｲ | G64: 2 | I64: 男
A65: 62 | B65: 40604 | C65: 峯岸 | D65: 太朗 | E65: ﾐﾈｷﾞｼ | F65: ﾀﾛｳ | G65: 2 | I65: 男
A66: 63 | B66: 40605 | C66: 山口 | D66: 蓮太 | E66: ﾔﾏｸﾞﾁ | F66: ﾚﾝﾀ | G66: 2 | I66: 男
A67: 64 | B67: 40606 | C67: 辻 | D67: 陽向 | E67: ﾂｼﾞ | F67: ﾋﾑｶ | G67: 1 | I67: 男
A68: 65 | B68: 40607 | C68: 井上 | D68: 一之 | E68: ｲﾉｳｴ | F68: ｶｽﾞﾕｷ | G68: 1 | I68: 男
A69: 66 | B69: 40608 | C69: 今井 | D69: 優 | E69: ｲﾏｲ | F69: ﾋﾛ | G69: 1 | I69: 男
A70: 67 | B70: 40621 | C70: 岩城 | D70: 啓吾 | E70: ｲﾜｷ | F70: ｹｲｺﾞ | G70: 3 | I70: 男
A71: 68 | B71: 40622 | C71: 中里 | D71: 浩太 | E71: ﾅｶｻﾞﾄ | F71: ｺｳﾀ | G71: 3 | I71: 男
A72: 69 | B72: 40623 | C72: 杉山 | D72: 豪 | E72: ｽｷﾞﾔﾏ | F72: ｺﾞｳ | G72: 3 | I72: 男
A73: 70 | B73: 40625 | C73: 吉永 | D73: 湧也 | E73: ﾖｼﾅｶﾞ | F73: ﾕｳﾔ | G73: 3 | I73: 男
A74: 71 | B74: 40626 | C74: 山本 | D74: 康生 | E74: ﾔﾏﾓﾄ | F74: ｺｳｾｲ | G74: 3 | I74: 男
A75: 72 | B75: 40627 | C75: 宮下 | D75: 裕翔 | E75: ﾐﾔｼﾀ | F75: ﾕｳｼｮｳ | G75: 3 | I75: 男
A76: 73 | B76: 40631 | C76: 池田 | D76: 琉斗 | E76: ｲｹﾀﾞ | F76: ﾘｭｳﾄ | G76: 3 | I76: 男
A77: 74 | B77: 40633 | C77: 髙石 | D77: 明良 | E77: ﾀｶｲｼ | F77: ｱｷﾗ | G77: 3 | I77: 男
A78: 75 | B78: 40651 | C78: 大場 | D78: 愛鈴 | E78: ｵｵﾊﾞ | F78: ｱｲﾘﾝ | G78: 2 | I78: 女
A79: 76 | B79: 40652 | C79: 団村 | D79: しおん | E79: ﾀﾞﾝﾑﾗ | F79: ｼｵﾝ | G79: 1 | I79: 女
A80: 77 | B80: 40653 | C80: 菊島 | D80: 唯 | E80: ｷｸｼﾏ | F80: ﾕｲ | G80: 1 | I80: 女
A81: 78 | B81: 40691 | C81: 瀬戸 | D81: やや | E81: ｾﾄ | F81: ﾔﾔ | G81: 3 | I81: 女
A82: 79 | B82: 40692 | C82: 氏家 | D82: 彩優莉 | E82: ｳｼﾞｲｴ | F82: ｱﾕﾘ | G82: 3 | I82: 女
A83: 80 | B83: 40910 | C83: 川口 | D83: 琉聖 | E83: ｶﾜｸﾞﾁ | F83: ﾘｭｳｾｲ | G83: 2 | I83: 男
A84: 81 | B84: 40912 | C84: 計良 | D84: 颯 | E84: ｹｲﾗ | F84: ﾊﾔﾄ | G84: 2 | I84: 男
A85: 82 | B85: 40913 | C85: 藤原 | D85: 心路 | E85: ﾌｼﾞﾜﾗ | F85: ｺｺﾛ | G85: 2 | I85: 男
A86: 83 | B86: 40920 | C86: 宮本 | D86: 幹士 | E86: ﾐﾔﾓﾄ | F86: ｶﾝﾄ | G86: 3 | I86: 男
A87: 84 | B87: 40921 | C87: 千葉 | D87: 大寛 | E87: ﾁﾊﾞ | F87: ﾄﾓﾋﾛ | G87: 3 | I87: 男
A88: 85 | B88: 40922 | C88: 藤野 | D88: 悠斗 | E88: ﾌｼﾞﾉ | F88: ﾕｳﾄ | G88: 3 | I88: 男
A89: 86 | B89: 40930 | C89: 泉 | D89: 駿汰 | E89: ｲｽﾞﾐ | F89: ｼｭﾝﾀ | G89: 1 | I89: 男
A90: 87 | B90: 40931 | C90: 王 | D90: 鵬宇 | E90: ｵｳ | F90: ﾎｳｳ | G90: 1 | I90: 男
A91: 88 | B91: 40932 | C91: 金子 | D91: 展 | E91: ｶﾈｺ | F91: ﾃﾝ | G91: 1 | I91: 男
A92: 89 | B92: 40933 | C92: 竹本 | D92: 凜太郎 | E92: ﾀｹﾓﾄ | F92: ﾘﾝﾀﾛｳ | G92: 1 | I92: 男
A93: 90 | B93: 40934 | C93: 長島 | D93: 駿翔 | E93: ﾅｶﾞｼﾏ | F93: ｼｭﾝﾄ | G93: 1 | I93: 男
A94: 91 | B94: 40935 | C94: 仲野 | D94: 翔馬 | E94: ﾅｶﾉ | F94: ｼｮｳﾏ | G94: 1 | I94: 男
A95: 92 | B95: 40951 | C95: 穴吹 | D95: 愛子 | E95: ｱﾅﾌﾞｷ | F95: ｱｲｺ | G95: 2 | I95: 女
A96: 93 | B96: 40952 | C96: 武藤 | D96: 碧輝 | E96: ﾑﾄｳ | F96: ﾀﾏｷ | G96: 2 | I96: 女
A97: 94 | B97: 40953 | C97: 寒川 | D97: 嬉愛 | E97: ｻﾑｶﾜ | F97: ｷｱｲ | G97: 2 | I97: 女
A98: 95 | B98: 40954 | C98: 戸沢 | D98: 麻乃 | E98: ﾄｻﾞﾜ | F98: ｱｻﾉ | G98: 2 | I98: 女
A99: 96 | B99: 41020 | C99: 山田 | D99: 啓翔 | E99: ﾔﾏﾀﾞ | F99: ｹｲﾄ | G99: 3 | I99: 男
A100: 97 | B100: 41021 | C100: 足立 | D100: 拓也 | E100: ｱﾀﾞﾁ | F100: ﾀｸﾔ | G100: 3 | I100: 男
A101: 98 | B101: 41022 | C101: 大森 | D101: 瑛樹 | E101: ｵｵﾓﾘ | F101: ｴｲｼﾞｭ | G101: 3 | I101: 男
A102: 99 | B102: 41023 | C102: 原 | D102: 福人 | E102: ﾊﾗ | F102: ﾌｸﾄ | G102: 3 | I102: 男
A103: 100 | B103: 41024 | C103: 佐久間 | D103: 共平 | E103: ｻｸﾏ | F103: ｷｮｳﾍｲ | G103: 3 | I103: 男
A104: 101 | B104: 41025 | C104: 細野 | D104: 眞平 | E104: ﾎｿﾉ | F104: ｼﾝﾍﾟｲ | G104: 3 | I104: 男
A105: 102 | B105: 41026 | C105: 佐藤 | D105: 桜典 | E105: ｻﾄｳ | F105: ｵｳｽｹ | G105: 2 | I105: 男
A106: 103 | B106: 41027 | C106: 原 | D106: 陽太 | E106: ﾊﾗ | F106: ﾖｳﾀ | G106: 2 | I106: 男
A107: 104 | B107: 41028 | C107: 轟 | D107: 歩巳 | E107: ﾄﾄﾞﾛｷ | F107: ｱﾕﾐ | G107: 2 | I107: 男
A108: 105 | B108: 41029 | C108: 秋山 | D108: 祥汰 | E108: ｱｷﾔﾏ | F108: ｼｮｳﾀ | G108: 2 | I108: 男
A109: 106 | B109: 41030 | C109: 若槻 | D109: 大翔 | E109: ﾜｶﾂｷ | F109: ﾋﾛﾄ | G109: 2 | I109: 男
A110: 107 | B110: 41031 | C110: 高木 | D110: 宏夢 | E110: ﾀｶｷﾞ | F110: ﾋﾛﾑ | G110: 2 | I110: 男
A111: 108 | B111: 41032 | C111: 田村 | D111: 航平 | E111: ﾀﾑﾗ | F111: ｺｳﾍｲ | G111: 1 | I111: 男
A112: 109 | B112: 41033 | C112: 角田 | D112: 公信 | E112: ｶｸﾀ | F112: ｷﾐﾉﾌﾞ | G112: 1 | I112: 男
A113: 110 | B113: 41034 | C113: 川本 | D113: 小太郎 | E113: ｶﾜﾓﾄ | F113: ｺﾀﾛｳ | G113: 1 | I113: 男
A114: 111 | B114: 41035 | C114: 木塚 | D114: 晟太 | E114: ｷﾂﾞｶ | F114: ｼﾞｮｳﾀ | G114: 1 | I114: 男
A115: 112 | B115: 41036 | C115: 木本 | D115: 健介 | E115: ｷﾓﾄ | F115: ｹﾝｽｹ | G115: 1 | I115: 男
A116: 113 | B116: 41037 | C116: 河野 | D116: 真吾 | E116: ｺｳﾉ | F116: ｼﾝｺﾞ | G116: 1 | I116: 男
A117: 114 | B117: 41038 | C117: 添野 | D117: 柊哉 | E117: ｿｴﾉ | F117: ｼｭｳﾔ | G117: 1 | I117: 男
A118: 115 | B118: 41039 | C118: 毛塚 | D118: 圭亮 | E118: ｹﾂﾞｶ | F118: ﾖｼｱｷ | G118: 1 | I118: 男
A119: 116 | B119: 41040 | C119: 原 | D119: 楽人 | E119: ﾊﾗ | F119: ﾗｸﾄ | G119: 1 | I119: 男
A120: 117 | B120: 41041 | C120: 森 | D120: 滉大 | E120: ﾓﾘ | F120: ｺｳﾀ | G120: 1 | I120: 男
A121: 118 | B121: 41042 | C121: 米良 | D121: 尚倖 | E121: ﾒﾗ | F121: ﾅｵﾕｷ | G121: 1 | I121: 男
A122: 119 | B122: 41043 | C122: 吉田 | D122: 凌人 | E122: ﾖｼﾀﾞ | F122: ﾘｮｳﾄ | G122: 1 | I122: 男
A123: 120 | B123: 41064 | C123: 山田 | D123: ひろか | E123: ﾔﾏﾀﾞ | F123: ﾋﾛｶ | G123: 3 | I123: 女
A124: 121 | B124: 41065 | C124: 松田 | D124: 涼花 | E124: ﾏﾂﾀﾞ | F124: ｽｽﾞｶ | G124: 3 | I124: 女
A125: 122 | B125: 41067 | C125: 古賀 | D125: ゆりの | E125: ｺｶﾞ | F125: ﾕﾘﾉ | G125: 3 | I125: 女
A126: 123 | B126: 41070 | C126: 三浦 | D126: 友 | E126: ﾐｳﾗ | F126: ﾄﾓ | G126: 2 | I126: 女
A127: 124 | B127: 41071 | C127: 柳田 | D127: 夏希 | E127: ﾔﾅｷﾞﾀﾞ | F127: ﾅﾂｷ | G127: 2 | I127: 女
A128: 125 | B128: 41072 | C128: 小野田 | D128: 美咲 | E128: ｵﾉﾀﾞ | F128: ﾐｻｷ | G128: 2 | I128: 女
A129: 126 | B129: 41073 | C129: 泉 | D129: 琴美 | E129: ｲｽﾞﾐ | F129: ｺﾄﾐ | G129: 2 | I129: 女
A130: 127 | B130: 41074 | C130: 牟田 | D130: 夏菜 | E130: ﾑﾀ | F130: ｶﾅ | G130: 2 | I130: 女
A131: 128 | B131: 41075 | C131: 小路 | D131: 真穂 | E131: ｺｳｼﾞ | F131: ﾏﾎ | G131: 2 | I131: 女
A132: 129 | B132: 41078 | C132: 坂本 | D132: 香菜子 | E132: ｻｶﾓﾄ | F132: ｶﾅｺ | G132: 2 | I132: 女
A133: 130 | B133: 41079 | C133: 石森 | D133: 花奈 | E133: ｲｼﾓﾘ | F133: ﾊﾅﾅ | G133: 2 | I133: 女
A134: 131 | B134: 41080 | C134: 遠藤 | D134: 茉柚子 | E134: ｴﾝﾄﾞｳ | F134: ﾏﾕｺ | G134: 2 | I134: 女
A135: 132 | B135: 41081 | C135: 岡本 | D135: 明日香 | E135: ｵｶﾓﾄ | F135: ｱｽｶ | G135: 2 | I135: 女
A136: 133 | B136: 41082 | C136: 野口 | D136: 遥加 | E136: ﾉｸﾞﾁ | F136: ﾊﾙｶ | G136: 2 | I136: 女
A137: 134 | B137: 41083 | C137: 石渡 | D137: 萌乃 | E137: ｲｼﾜﾀﾘ | F137: ﾓｴﾉ | G137: 1 | I137: 女
A138: 135 | B138: 41084 | C138: 井上 | D138: 真緒 | E138: ｲﾉｳｴ | F138: ﾏｵ | G138: 1 | I138: 女
A139: 136 | B139: 41085 | C139: 門倉 | D139: 小晴 | E139: ｶﾄﾞｸﾗ | F139: ｺﾊﾙ | G139: 1 | I139: 女
A140: 137 | B140: 41086 | C140: 篠崎 | D140: 千佳 | E140: ｼﾉｻﾞｷ | F140: ﾁｶ | G140: 1 | I140: 女
A141: 138 | B141: 41087 | C141: 塚田 | D141: 渚弥 | E141: ﾂｶﾀﾞ | F141: ﾅﾐ | G141: 1 | I141: 女
A142: 139 | B142: 41088 | C142: 椿 | D142: 杏桜 | E142: ﾂﾊﾞｷ | F142: ｱｺ | G142: 1 | I142: 女
A143: 140 | B143: 41089 | C143: 浜砂 | D143: 璃音 | E143: ﾊﾏｽﾅ | F143: ﾘｵﾝ | G143: 1 | I143: 女
A144: 141 | B144: 41090 | C144: マッキー | D144: ヒカリ | E144: ﾏｯｷｰ | F144: ﾋｶﾘ | G144: 1 | I144: 女
A145: 142 | B145: 41091 | C145: 山田 | D145: 亜優 | E145: ﾔﾏﾀﾞ | F145: ｱﾕ | G145: 1 | I145: 女
A146: 143 | B146: 41092 | C146: 梅林 | D146: 杏奈 | E146: ｳﾒﾊﾞﾔｼ | F146: ｱﾝﾅ | G146: 1 | I146: 女
A147: 144 | B147: 41115 | C147: 浅野 | D147: 智紀 | E147: ｱｻﾉ | F147: ﾄﾓｷ | G147: 3 | I147: 男
A148: 145 | B148: 41117 | C148: 片桐 | D148: 七海 | E148: ｶﾀｷﾞﾘ | F148: ﾅﾅﾐ | G148: 3 | I148: 男
A149: 146 | B149: 41118 | C149: 白熊 | D149: 大義 | E149: ｼﾗｸﾏ | F149: ﾋﾛﾖｼ | G149: 3 | I149: 男
A150: 147 | B150: 41119 | C150: 髙木 | D150: 賢 | E150: ﾀｶｷﾞ | F150: ｹﾝ | G150: 3 | I150: 男
A151: 148 | B151: 41120 | C151: 古谷 | D151: 祐太 | E151: ﾌﾙﾔ | F151: ﾕｳﾀ | G151: 3 | I151: 男
A152: 149 | B152: 41122 | C152: 秋山 | D152: 広樹 | E152: ｱｷﾔﾏ | F152: ﾋﾛｷ | G152: 2 | I152: 男
A153: 150 | B153: 41123 | C153: 東 | D153: 晃三 | E153: ｱｽﾞﾏ | F153: ｺｳｿﾞｳ | G153: 2 | I153: 男
A154: 151 | B154: 41125 | C154: 冨田 | D154: 英寿 | E154: ﾄﾐﾀ | F154: ﾋﾃﾞﾄｼ | G154: 2 | I154: 男
A155: 152 | B155: 41126 | C155: 鎌田 | D155: 渉 | E155: ｶﾏﾀ | F155: ﾜﾀﾙ | G155: 1 | I155: 男
A156: 153 | B156: 41127 | C156: 鈴木 | D156: 翔太郎 | E156: ｽｽﾞｷ | F156: ｼｮｳﾀﾛｳ | G156: 1 | I156: 男
A157: 154 | B157: 41128 | C157: 田垣 | D157: 翔太 | E157: ﾀｶﾞｷ | F157: ｼｮｳﾀ | G157: 1 | I157: 男
A158: 155 | B158: 41129 | C158: 豊島 | D158: 慎梧 | E158: ﾄﾖｼﾏ | F158: ｼﾝｺﾞ | G158: 1 | I158: 男
A159: 156 | B159: 41167 | C159: 坂倉 | D159: 優実 | E159: ｻｶｸﾗ | F159: ﾕｳﾐ | G159: 3 | I159: 女
A160: 157 | B160: 41168 | C160: 栗原 | D160: 日向葵 | E160: ｸﾘﾊﾗ | F160: ﾋﾅﾀ | G160: 2 | I160: 女
A161: 158 | B161: 41169 | C161: 山田 | D161: 未優 | E161: ﾔﾏﾀﾞ | F161: ﾐｳ | G161: 1 | I161: 女
A162: 159 | B162: 41460 | C162: 安藤 | D162: 芽生 | E162: ｱﾝﾄﾞｳ | F162: ﾒｲ | G162: 1 | I162: 女
A163: 160 | B163: 41461 | C163: 生田 | D163: 寛絵 | E163: ｲｸﾀ | F163: ﾋﾛｴ | G163: 1 | I163: 女
A164: 161 | B164: 41462 | C164: 内田 | D164: 凜花 | E164: ｳﾁﾀﾞ | F164: ﾘﾝｶ | G164: 1 | I164: 女
A165: 162 | B165: 41463 | C165: 田代 | D165: 晴香 | E165: ﾀｼﾛ | F165: ﾊﾙｶ | G165: 1 | I165: 女
A166: 163 | B166: 41464 | C166: 野澤 | D166: 彩花 | E166: ﾉｻﾞﾜ | F166: ｱﾔｶ | G166: 1 | I166: 女
A167: 164 | B167: 41465 | C167: 長谷田 | D167: 柚月 | E167: ﾊｾﾀﾞ | F167: ﾕﾂﾞｷ | G167: 1 | I167: 女
A168: 165 | B168: 41466 | C168: 満惠川 | D168: 彩 | E168: ﾏｴｶﾜ | F168: ｱﾔ | G168: 1 | I168: 女
A169: 166 | B169: 41467 | C169: 村井 | D169: 円香 | E169: ﾑﾗｲ | F169: ﾏﾄﾞｶ | G169: 1 | I169: 女
A170: 167 | B170: 41468 | C170: 若林 | D170: 万由佳 | E170: ﾜｶﾊﾞﾔｼ | F170: ﾏﾕｶ | G170: 1 | I170: 女
A171: 168 | B171: 41501 | C171: 双川 | D171: 尚昭 | E171: ﾌﾀｶﾞﾜ | F171: ﾅｵｱｷ | G171: 1 | I171: 男
A172: 169 | B172: 41502 | C172: 千明 | D172: 大夢 | E172: ﾁｱｷ | F172: ﾋﾛﾑ | G172: 1 | I172: 男
A173: 170 | B173: 41503 | C173: 相川 | D173: 存 | E173: ｱｲｶﾜ | F173: ｽｽﾑ | G173: 1 | I173: 男
A174: 171 | B174: 41504 | C174: 成吉 | D174: 大也 | E174: ﾅﾘﾖｼ | F174: ﾀﾞｲﾔ | G174: 1 | I174: 男
A175: 172 | B175: 41505 | C175: 阿部 | D175: 岳斗 | E175: ｱﾍﾞ | F175: ｶﾞｸﾄ | G175: 1 | I175: 男
A176: 173 | B176: 41506 | C176: 安宅 | D176: 海生 | E176: ｱﾀｶ | F176: ｶｲｾｲ | G176: 3 | I176: 男
A177: 174 | B177: 41507 | C177: 小池 | D177: 光輝 | E177: ｺｲｹ | F177: ｺｳｷ | G177: 3 | I177: 男
A178: 175 | B178: 41508 | C178: 武久 | D178: 右京 | E178: ﾀｹﾋｻ | F178: ｳｷｮｳ | G178: 3 | I178: 男
A179: 176 | B179: 41509 | C179: 山本 | D179: 真輝 | E179: ﾔﾏﾓﾄ | F179: ﾏｷ | G179: 3 | I179: 男
A180: 177 | B180: 41510 | C180: 五十嵐 | D180: 悠宇 | E180: ｲｶﾞﾗｼ | F180: ﾕｳ | G180: 2 | I180: 男
A181: 178 | B181: 41511 | C181: 石田 | D181: 龍成 | E181: ｲｼﾀﾞ | F181: ﾘｭｳｾｲ | G181: 2 | I181: 男
A182: 179 | B182: 41513 | C182: 熊本 | D182: 健吾 | E182: ｸﾏﾓﾄ | F182: ｹﾝｺﾞ | G182: 2 | I182: 男
A183: 180 | B183: 41514 | C183: 才藤 | D183: 幸太 | E183: ｻｲﾄｳ | F183: ｺｳﾀ | G183: 2 | I183: 男
A184: 181 | B184: 41516 | C184: 西本 | D184: 青空 | E184: ﾆｼﾓﾄ | F184: ｿﾗ | G184: 2 | I184: 男
A185: 182 | B185: 41517 | C185: 増本 | D185: 大樹 | E185: ﾏｽﾓﾄ | F185: ﾀｲｷ | G185: 2 | I185: 男
A186: 183 | B186: 41518 | C186: 柳田 | D186: 将汰 | E186: ﾔﾅｷﾞﾀﾞ | F186: ｼｮｳﾀ | G186: 2 | I186: 男
A187: 184 | B187: 41519 | C187: 小林 | D187: 衣吹 | E187: ｺﾊﾞﾔｼ | F187: ｲﾌﾞｷ | G187: 1 | I187: 男
A188: 185 | B188: 41520 | C188: 大野 | D188: 嵩裕 | E188: ｵｵﾉ | F188: ﾀｶﾋﾛ | G188: 1 | I188: 男
A189: 186 | B189: 41751 | C189: 天野 | D189: 煕子 | E189: ｱﾏﾉ | F189: ｷｺ | G189: 1 | I189: 女
A190: 187 | B190: 41752 | C190: 生田 | D190: 有紗香 | E190: ｲｸﾀ | F190: ｱｻｶ | G190: 1 | I190: 女
A191: 188 | B191: 41753 | C191: 田村 | D191: 佳奈 | E191: ﾀﾑﾗ | F191: ｶﾅ | G191: 1 | I191: 女
A192: 189 | B192: 41760 | C192: 荒井 | D192: 雛子 | E192: ｱﾗｲ | F192: ﾋﾅｺ | G192: 3 | I192: 女
A193: 190 | B193: 41762 | C193: 米田 | D193: 希 | E193: ﾖﾈﾀ | F193: ﾉｿﾞﾐ | G193: 3 | I193: 女
A194: 191 | B194: 41791 | C194: 高柳 | D194: 萌 | E194: ﾀｶﾔﾅｷﾞ | F194: ﾓｴ | G194: 2 | I194: 女
A195: 192 | B195: 41792 | C195: 石渡 | D195: 都 | E195: ｲｼﾜﾀ | F195: ﾐﾔｺ | G195: 2 | I195: 女
A196: 193 | B196: 41793 | C196: 岡垣 | D196: 茉莉 | E196: ｵｶｶﾞｷ | F196: ﾏﾘ | G196: 2 | I196: 女
A197: 194 | B197: 41794 | C197: 鈴木 | D197: 涼香 | E197: ｽｽﾞｷ | F197: ﾘｮｳｶ | G197: 2 | I197: 女
A198: 195 | B198: 41795 | C198: 草深 | D198: 有理 | E198: ｸｻﾌｶ | F198: ﾕﾘ | G198: 2 | I198: 女
A199: 196 | B199: 41796 | C199: 伊藤 | D199: 花鈴 | E199: ｲﾄｳ | F199: ｶﾘﾝ | G199: 2 | I199: 女
A200: 197 | B200: 41797 | C200: 丸山 | D200: 真奈 | E200: ﾏﾙﾔﾏ | F200: ﾏﾅ | G200: 2 | I200: 女
... 3727 more rows
